Workbook

Sheet Intro
A1: Excel 2010 = Statistical Functions and PivotTables are totally different (MUCH BETTER!) | C1: Sales | E1: Date | F1: AutoSold | G1: Sales | I1: Rank | J1: <<== Example of 2010 New Function
A2: Windows 7 = Operating System | C2: 7 | E2: 2011-06-13 | F2: Honda | G2: 15546 | I2: =_xlfn.RANK.AVG(G2,$G$2:$G$9,0) -> 8
A3: Column Headers | C3: 26 | E3: 2011-06-14 | F3: Honda | G3: 25857 | I3: =_xlfn.RANK.AVG(G3,$G$2:$G$9,0) -> 3
A4: Row Headers | C4: 9 | E4: 2011-06-15 | F4: Honda | G4: 22494 | I4: 4
A5: Cells | C5: 1 | E5: 2011-06-16 | F5: Toyota | G5: 22479 | I5: 5
A6: Scroll Bars = Expose more of the workbook | C6: 4 | E6: 2011-06-17 | F6: Toyota | G6: 30664 | I6: 1
A7: Worksheets = All The Cells | C7: 6 | E7: 2011-06-18 | F7: Ford | G7: =G9 -> 15996 | I7: 6.5
A8: Sheet Tab Names = Name of Worksheet | C8: 10 | E8: 2011-06-19 | F8: Toyota | G8: 26478 | I8: 2
A9: Workbooks = All Worksheets | C9: 4 | E9: 2011-06-20 | F9: Toyota | G9: 15996 | I9: 6.5
A10: File = Workbook
A11: File Extensions | E11: AutoSold | F11: Frequency (Count)
A12: Ribbon Tabs | E12: Honda | F12: =COUNTIF($F$2:$F$9,E12) -> 3
A13: QAT - Quick Access Toolbar | E13: Toyota | F13: =COUNTIF($F$2:$F$9,E13) -> 4
A14: Data Analysis Add-in | E14: Ford | F14: 1
A15: Excel does 4 things: 1) Store Raw Data 2) Make Calculations 3)Data Analysis (Convert Raw Data Into Useful Information) 4)Charts
A16: Keyboard Shortcuts
A17: Move Through Sheets = Ctrl + PageUp/PageDown
A18: Show File extensions: Folder Options, View Tab, Uncheck "Hide Extensions for Known File Types"
A19: Undo = Ctrl + Z
A21: Average Score | B21: Standard Deviation = Tells You How Reliable Your Average Is.
A22: Same in all versions | B22: Excel 2010 | C22: Excel 2007
A23: =AVERAGE(A26:A188) -> 62.8404908 | B23: =_xlfn.STDEV.P(A26:A188) -> 18.42408612 | C23: =STDEVP(A26:A188) -> 18.42408612
A25: Scores | B25: Deviations2
A26: 57 | B26: =(A26-$A$23)^2 -> 34.11133276 | D26: Sum of Deviations Squared | E26: =SUM(B26:B188) -> 55329.85276
A27: 51 | B27: =(A27-$A$23)^2 -> 140.1972223 | D27: Divide by count | E27: =E26/COUNT(A26:A188) -> 339.4469495
A28: 6 | B28: 3230.841394 | D28: Square Root | E28: =SQRT(E27) -> 18.42408612
A29: 57 | B29: 34.11133276
A30: 47 | B30: 250.9211487
A31: 92 | B31: 850.2769769
A32: 58 | B32: 23.43035116
A33: 61 | B33: 3.387406376
A34: 63 | B34: 0.02544318567
A35: 64 | B35: 1.344461591
A36: 56 | B36: 46.79231435
A37: 68 | B37: 26.62053521
A38: 98 | B38: 1236.191087
A39: 62 | B39: 0.7064247808
A40: 57 | B40: 34.11133276
A41: 87 | B41: 583.6818849
A42: 0 | B42: 3948.927284
A43: 54 | B43: 78.15427754
A44: 48 | B44: 220.2401671
A45: 62 | B45: 0.7064247808
A46: 61 | B46: 3.387406376
A47: 66 | B47: 9.9824984
A48: 80 | B48: 294.4487561
A49: 89 | B49: 684.3199217
A50: 90 | B50: 737.6389401
A51: 65 | B51: 4.663479995
A52: 56 | B52: 46.79231435
A53: 64 | B53: 1.344461591
A54: 94 | B54: 970.9150137
A55: 62 | B55: 0.7064247808
A56: 46 | B56: 283.6021303
A57: 56 | B57: 46.79231435
A58: 85 | B58: 491.0438481
A59: 57 | B59: 34.11133276
A60: 51 | B60: 140.1972223
A61: 42 | B61: 434.3260567
A62: 48 | B62: 220.2401671
A63: 55 | B63: 61.47329595
A64: 3 | B64: 3580.884339
A65: 64 | B65: 1.344461591
A66: 58 | B66: 23.43035116
A67: 64 | B67: 1.344461591
A68: 70 | B68: 51.25857202
A69: 76 | B69: 173.1726824
A70: 95 | B70: 1034.234032
A71: 48 | B71: 220.2401671
A72: 61 | B72: 3.387406376
A73: 69 | B73: 37.93955362
A74: 66 | B74: 9.9824984
A75: 65 | B75: 4.663479995
A76: 62 | B76: 0.7064247808
A77: 53 | B77: 96.83525914
A78: 65 | B78: 4.663479995
A79: 99 | B79: 1307.510106
A80: 59 | B80: 14.74936957
A81: 84 | B81: 447.7248297
A82: 51 | B82: 140.1972223
A83: 67 | B83: 17.30151681
A84: 76 | B84: 173.1726824
A85: 56 | B85: 46.79231435
A86: 60 | B86: 8.068387971
A87: 71 | B87: 66.57759042
A88: 75 | B88: 147.853664
A89: 99 | B89: 1307.510106
A90: 70 | B90: 51.25857202
A91: 41 | B91: =(A91-$A$23)^2 -> 477.0070383
A92: 66 | B92: 9.9824984
A93: 67 | B93: 17.30151681
A94: 50 | B94: 164.8782039
A95: 69 | B95: 37.93955362
A96: 49 | B96: 191.5591855
A97: 78 | B97: 229.8107193
A98: 63 | B98: 0.02544318567
A99: 69 | B99: 37.93955362
A100: 61 | B100: 3.387406376
A101: 64 | B101: 1.344461591
A102: 59 | B102: 14.74936957
A103: 61 | B103: 3.387406376
A104: 79 | B104: 261.1297377
A105: 64 | B105: 1.344461591
A106: 99 | B106: 1307.510106
A107: 1 | B107: 3824.246302
A108: 50 | B108: 164.8782039
A109: 80 | B109: 294.4487561
A110: 96 | B110: 1099.553051
A111: 56 | B111: 46.79231435
A112: 59 | B112: 14.74936957
A113: 96 | B113: 1099.553051
A114: 47 | B114: 250.9211487
A115: 56 | B115: 46.79231435
A116: 76 | B116: 173.1726824
A117: 65 | B117: 4.663479995
A118: 10 | B118: 2792.117468
A119: 59 | B119: 14.74936957
A120: 61 | B120: 3.387406376
A121: 67 | B121: 17.30151681
A122: 66 | B122: 9.9824984
A123: 56 | B123: 46.79231435
A124: 62 | B124: 0.7064247808
A125: 51 | B125: 140.1972223
A126: 57 | B126: 34.11133276
A127: 45 | B127: 318.2831119
A128: 57 | B128: 34.11133276
A129: 57 | B129: 34.11133276
A130: 59 | B130: 14.74936957
A131: 78 | B131: 229.8107193
A132: 61 | B132: 3.387406376
A133: 52 | B133: 117.5162407
A134: 89 | B134: 684.3199217
A135: 89 | B135: 684.3199217
A136: 56 | B136: 46.79231435
A137: 11 | B137: 2687.436486
A138: 63 | B138: 0.02544318567
A139: 57 | B139: 34.11133276
A140: 60 | B140: 8.068387971
A141: 43 | B141: 393.6450751
A142: 27 | B142: 1284.540781
A143: 70 | B143: 51.25857202
A144: 83 | B144: 406.4058113
A145: 73 | B145: 103.2156272
A146: 58 | B146: 23.43035116
A147: 65 | B147: 4.663479995
A148: 96 | B148: 1099.553051
A149: 63 | B149: 0.02544318567
A150: 55 | B150: 61.47329595
A151: 69 | B151: 37.93955362
A152: 63 | B152: 0.02544318567
A153: 45 | B153: 318.2831119
A154: 53 | B154: 96.83525914
A155: 61 | B155: =(A155-$A$23)^2 -> 3.387406376
A156: 58 | B156: 23.43035116
A157: 68 | B157: 26.62053521
A158: 57 | B158: 34.11133276
A159: 92 | B159: 850.2769769
A160: 57 | B160: 34.11133276
A161: 95 | B161: 1034.234032
A162: 63 | B162: 0.02544318567
A163: 67 | B163: 17.30151681
A164: 53 | B164: 96.83525914
A165: 61 | B165: 3.387406376
A166: 59 | B166: 14.74936957
A167: 56 | B167: 46.79231435
A168: 65 | B168: 4.663479995
A169: 58 | B169: 23.43035116
A170: 61 | B170: 3.387406376
A171: 90 | B171: 737.6389401
A172: 40 | B172: 521.6880199
A173: 59 | B173: 14.74936957
A174: 86 | B174: 536.3628665
A175: 52 | B175: 117.5162407
A176: 86 | B176: 536.3628665
A177: 64 | B177: 1.344461591
A178: 94 | B178: 970.9150137
A179: 66 | B179: 9.9824984
A180: 75 | B180: 147.853664
A181: 12 | B181: 2584.755505
A182: 68 | B182: 26.62053521
A183: 60 | B183: 8.068387971
A184: 68 | B184: 26.62053521
A185: 90 | B185: 737.6389401
A186: 50 | B186: 164.8782039
A187: 71 | B187: 66.57759042
A188: 73 | B188: 103.2156272

Sheet Intro (an)
A1: Excel 2010 = Statistical Functions and PivotTables are totally different (MUCH BETTER!) | C1: Sales | E1: Date | F1: AutoSold | G1: Sales | I1: Rank | J1: <<== Example of 2010 New Function
A2: Windows 7 = Operating System | C2: 7 | E2: 2011-06-13 | F2: Honda | G2: 15546 | I2: =_xlfn.RANK.AVG(G2,$G$2:$G$9,0) -> 8
A3: Column Headers | C3: 26 | E3: 2011-06-14 | F3: Honda | G3: 25857 | I3: =_xlfn.RANK.AVG(G3,$G$2:$G$9,0) -> 3
A4: Row Headers | C4: 9 | E4: 2011-06-15 | F4: Honda | G4: 22494 | I4: 4
A5: Cells | C5: 1 | E5: 2011-06-16 | F5: Toyota | G5: 22479 | I5: 5
A6: Scroll Bars = Expose more of the workbook | C6: 4 | E6: 2011-06-17 | F6: Toyota | G6: 30664 | I6: 1
A7: Worksheets = All The Cells | C7: 6 | E7: 2011-06-18 | F7: Ford | G7: =G9 -> 15996 | I7: 6.5
A8: Sheet Tab Names = Name of Worksheet | C8: 10 | E8: 2011-06-19 | F8: Toyota | G8: 26478 | I8: 2
A9: Workbooks = All Worksheets | C9: 4 | E9: 2011-06-20 | F9: Toyota | G9: 15996 | I9: 6.5
A10: File = Workbook | C10: =SUM(C2:C9) -> 67
A11: File Extensions | E11: AutoSold | F11: Frequency (Count)
A12: Ribbon Tabs | E12: Honda | F12: =COUNTIF($F$2:$F$9,E12) -> 3
A13: QAT - Quick Access Toolbar | E13: Toyota | F13: =COUNTIF($F$2:$F$9,E13) -> 4
A14: Data Analysis Add-in | E14: Ford | F14: 1
A15: Excel does 4 things: 1) Store Raw Data 2) Make Calculations 3)Data Analysis (Convert Raw Data Into Useful Information) 4)Charts
A16: Keyboard Shortcuts
A17: Move Through Sheets = Ctrl + PageUp/PageDown
A18: Show File extensions: Folder Options, View Tab, Uncheck "Hide Extensions for Known File Types"
A19: Undo = Ctrl + Z
A21: Average Score | B21: Standard Deviation = Tells You How Reliable Your Average Is.
A22: Same in all versions | B22: Excel 2010 | C22: Excel 2007
A23: =AVERAGE(A26:A188) -> 62.8404908 | B23: =_xlfn.STDEV.P(A26:A188) -> 18.42408612 | C23: =STDEVP(A26:A188) -> 18.42408612
A25: Scores | B25: Deviations2
A26: 57 | B26: =(A26-$A$23)^2 -> 34.11133276 | D26: Sum of Deviations Squared | E26: =SUM(B26:B188) -> 55329.85276
A27: 51 | B27: =(A27-$A$23)^2 -> 140.1972223 | D27: Divide by count | E27: =E26/COUNT(A26:A188) -> 339.4469495
A28: 6 | B28: 3230.841394 | D28: Square Root | E28: =SQRT(E27) -> 18.42408612
A29: 57 | B29: 34.11133276
A30: 47 | B30: 250.9211487
A31: 92 | B31: 850.2769769
A32: 58 | B32: 23.43035116
A33: 61 | B33: 3.387406376
A34: 63 | B34: 0.02544318567
A35: 64 | B35: 1.344461591
A36: 56 | B36: 46.79231435
A37: 68 | B37: 26.62053521
A38: 98 | B38: 1236.191087
A39: 62 | B39: 0.7064247808
A40: 57 | B40: 34.11133276
A41: 87 | B41: 583.6818849
A42: 0 | B42: 3948.927284
A43: 54 | B43: 78.15427754
A44: 48 | B44: 220.2401671
A45: 62 | B45: 0.7064247808
A46: 61 | B46: 3.387406376
A47: 66 | B47: 9.9824984
A48: 80 | B48: 294.4487561
A49: 89 | B49: 684.3199217
A50: 90 | B50: 737.6389401
A51: 65 | B51: 4.663479995
A52: 56 | B52: 46.79231435
A53: 64 | B53: 1.344461591
A54: 94 | B54: 970.9150137
A55: 62 | B55: 0.7064247808
A56: 46 | B56: 283.6021303
A57: 56 | B57: 46.79231435
A58: 85 | B58: 491.0438481
A59: 57 | B59: 34.11133276
A60: 51 | B60: 140.1972223
A61: 42 | B61: 434.3260567
A62: 48 | B62: 220.2401671
A63: 55 | B63: 61.47329595
A64: 3 | B64: 3580.884339
A65: 64 | B65: 1.344461591
A66: 58 | B66: 23.43035116
A67: 64 | B67: 1.344461591
A68: 70 | B68: 51.25857202
A69: 76 | B69: 173.1726824
A70: 95 | B70: 1034.234032
A71: 48 | B71: 220.2401671
A72: 61 | B72: 3.387406376
A73: 69 | B73: 37.93955362
A74: 66 | B74: 9.9824984
A75: 65 | B75: 4.663479995
A76: 62 | B76: 0.7064247808
A77: 53 | B77: 96.83525914
A78: 65 | B78: 4.663479995
A79: 99 | B79: 1307.510106
A80: 59 | B80: 14.74936957
A81: 84 | B81: 447.7248297
A82: 51 | B82: 140.1972223
A83: 67 | B83: 17.30151681
A84: 76 | B84: 173.1726824
A85: 56 | B85: 46.79231435
A86: 60 | B86: 8.068387971
A87: 71 | B87: 66.57759042
A88: 75 | B88: 147.853664
A89: 99 | B89: 1307.510106
A90: 70 | B90: 51.25857202
A91: 41 | B91: =(A91-$A$23)^2 -> 477.0070383
A92: 66 | B92: 9.9824984
A93: 67 | B93: 17.30151681
A94: 50 | B94: 164.8782039
A95: 69 | B95: 37.93955362
A96: 49 | B96: 191.5591855
A97: 78 | B97: 229.8107193
A98: 63 | B98: 0.02544318567
A99: 69 | B99: 37.93955362
A100: 61 | B100: 3.387406376
A101: 64 | B101: 1.344461591
A102: 59 | B102: 14.74936957
A103: 61 | B103: 3.387406376
A104: 79 | B104: 261.1297377
A105: 64 | B105: 1.344461591
A106: 99 | B106: 1307.510106
A107: 1 | B107: 3824.246302
A108: 50 | B108: 164.8782039
A109: 80 | B109: 294.4487561
A110: 96 | B110: 1099.553051
A111: 56 | B111: 46.79231435
A112: 59 | B112: 14.74936957
A113: 96 | B113: 1099.553051
A114: 47 | B114: 250.9211487
A115: 56 | B115: 46.79231435
A116: 76 | B116: 173.1726824
A117: 65 | B117: 4.663479995
A118: 10 | B118: 2792.117468
A119: 59 | B119: 14.74936957
A120: 61 | B120: 3.387406376
A121: 67 | B121: 17.30151681
A122: 66 | B122: 9.9824984
A123: 56 | B123: 46.79231435
A124: 62 | B124: 0.7064247808
A125: 51 | B125: 140.1972223
A126: 57 | B126: 34.11133276
A127: 45 | B127: 318.2831119
A128: 57 | B128: 34.11133276
A129: 57 | B129: 34.11133276
A130: 59 | B130: 14.74936957
A131: 78 | B131: 229.8107193
A132: 61 | B132: 3.387406376
A133: 52 | B133: 117.5162407
A134: 89 | B134: 684.3199217
A135: 89 | B135: 684.3199217
A136: 56 | B136: 46.79231435
A137: 11 | B137: 2687.436486
A138: 63 | B138: 0.02544318567
A139: 57 | B139: 34.11133276
A140: 60 | B140: 8.068387971
A141: 43 | B141: 393.6450751
A142: 27 | B142: 1284.540781
A143: 70 | B143: 51.25857202
A144: 83 | B144: 406.4058113
A145: 73 | B145: 103.2156272
A146: 58 | B146: 23.43035116
A147: 65 | B147: 4.663479995
A148: 96 | B148: 1099.553051
A149: 63 | B149: 0.02544318567
A150: 55 | B150: 61.47329595
A151: 69 | B151: 37.93955362
A152: 63 | B152: 0.02544318567
A153: 45 | B153: 318.2831119
A154: 53 | B154: 96.83525914
A155: 61 | B155: =(A155-$A$23)^2 -> 3.387406376
A156: 58 | B156: 23.43035116
A157: 68 | B157: 26.62053521
A158: 57 | B158: 34.11133276
A159: 92 | B159: 850.2769769
A160: 57 | B160: 34.11133276
A161: 95 | B161: 1034.234032
A162: 63 | B162: 0.02544318567
A163: 67 | B163: 17.30151681
A164: 53 | B164: 96.83525914
A165: 61 | B165: 3.387406376
A166: 59 | B166: 14.74936957
A167: 56 | B167: 46.79231435
A168: 65 | B168: 4.663479995
A169: 58 | B169: 23.43035116
A170: 61 | B170: 3.387406376
A171: 90 | B171: 737.6389401
A172: 40 | B172: 521.6880199
A173: 59 | B173: 14.74936957
A174: 86 | B174: 536.3628665
A175: 52 | B175: 117.5162407
A176: 86 | B176: 536.3628665
A177: 64 | B177: 1.344461591
A178: 94 | B178: 970.9150137
A179: 66 | B179: 9.9824984
A180: 75 | B180: 147.853664
A181: 12 | B181: 2584.755505
A182: 68 | B182: 26.62053521
A183: 60 | B183: 8.068387971
A184: 68 | B184: 26.62053521
A185: 90 | B185: 737.6389401
A186: 50 | B186: 164.8782039
A187: 71 | B187: 66.57759042
A188: 73 | B188: 103.2156272

Sheet Calculations
A1: You already know the order of operations (left to right): Parenthesis, Exponents, Multiply/Divide, Add/Subtract
A2: You must learn Excel's Operation Symbols
A3: Parenthesis | B3: ( ) | C3: Shift + 9 and Shift + 0 | D3: Math Operators
A4: Exponents | B4: ^ | C4: Shift + 6 | D4: Math Operators
A5: Multiply | B5: * | C5: Number pad | D5: Math Operators
A6: Divide | B6: / | C6: Number pad | D6: Math Operators
A7: Add | B7: + | C7: Number pad | D7: Math Operators
A8: Subtract | B8: - | C8: Number pad | D8: Math Operators
A9: Join | B9: & | C9: Shift + 7 | D9: Join Symbol - Ampersand
A10: Text in formulas | B10: " " | C10: Shift + " | D10: Text in formulas must be in Double Quotes, like "The average is "
A11: Equal | B11: = | C11: Left of Backspace | D11: Comparative Operators
A12: Greater than | B12: > | C12: Shift + . | D12: Comparative Operators
A13: Greater than or equal to | B13: >= | C13: 2 characters next to each other | D13: Comparative Operators
A14: Less than | B14: < | C14: Shift + , | D14: Comparative Operators
A15: Less than or equal to | B15: <= | C15: 2 characters next to each other | D15: Comparative Operators
A16: Not | B16: <> | C16: 2 characters next to each other | D16: Comparative Operators
A18: When you make calculations, you can use Formulas
A19: Formulas Start with the Equal Sign
A21: Formula for arithmetic | C21: Formula that uses Function
A22: X | C22: Scores
A23: 8.75 | C23: 100
A24: Average | C24: 88
A25: 10.5 | C25: 43
A26: (X-Average)^2 | C26: 95 | H26: Formula Notes:
C27: 88 | H27: To Create a Formula, type an equal sign as the first character in the cell
C28: Add = SUM | H28: Put formula inputs (numbers etc.) in cells and refer to numbers with cell references
C29: Mean = AVERAGE = | F29: Older | H29: Put cell references in formulas with Mouse or Arrow Keys
C30: MODE = MODE.SNGL | F30: =MODE(C23:C27) -> 88 | H30: Put cell in edit mode = F2
C31: Standard Deviation = STDEV.S | F31: =STDEV(C23:C27) -> 22.81885186 | H31: Esc Key = revert back to what was in cell before you put cell in edit mode
C32: Criteria | D32: 90 | H32: To search for functions, use the fx button on the Formula Bar
C33: ="Count # >= "&D32 -> Count # >= 90 | H33: When creating COUNTIF or COUNTIFS functions put comparative operators in
C34: Criteria 1 | D34: 50 | H34: Double Quotes, like: ">=", and use Join Symbol (&) to join comparative operator
C35: Criteria 2 | D35: 100 | H35: and number.
C36: ="Counting Values Between "&D34&" and "&D35&" (inclusive)" -> Counting Values Between 50 and 100 (inclusive) | H36: Types of Formulas: Calculating, Text, Logical
C37: Revenue | D37: 1000 | H37: Keyboard shortcut for Auto Sum: Alt + =
C38: Expense 1 | D38: 250 | H38: Keyboard shortcut to jump to bottom of a column: Ctrl + Arrow
C39: Expense 2 | D39: 100 | H39: Keyboard shortcut for highlighting a column: Ctrl + Shift + Arrow
C40: Expense 3 | D40: 395
C41: Net Income
C43: All formulas so far have been "Calculating Formulas"
C45: Text Formula
C48: TRUE/FALSE formula: Logical Formulas
D49: Is Mode greater than Average: TRUE or FALSE?
C52: Sales | D52: Total
C53: 95
C54: 100
C55: 40
C56: 65
C57: 89
C58: 75
C59: 94
C60: 81
C61: 43
C62: 50
C63: 10
C64: 74
C65: 59
C66: 20
C67: 84
C68: 91
C69: 60
C70: 43
C71: 18
C72: 31
C73: 86
C74: 13
C75: 44
C76: 100
C77: 61
C78: 84
C79: 70
C80: 92
C81: 18
C82: 97
C83: 88
C84: 43
C85: 53
C86: 49
C87: 48
C88: 43
C89: 34
C90: 14
C91: 85
C92: 39
C93: 16
C94: 33
C95: 22
C96: 63
C97: 49
C98: 100
C99: 69
C100: 37
C101: 89
C102: 80
C103: 55
C104: 87
C105: 38
C106: 50
C107: 19
C108: 56
C109: 35
C110: 71
C111: 41
C112: 39
C113: 71
C114: 60
C115: 39
C116: 48
C117: 75
C118: 40
C119: 12
C120: 69
C121: 53
C122: 29
C123: 30
C124: 10
C125: 78
C126: 74
C127: 56
C128: 65
C129: 62
C130: 66
C131: 26
C132: 34
C133: 88
C134: 12
C135: 38
C136: 46
C137: 59
C138: 95
C139: 52
C140: 64
C141: 76
C142: 36
C143: 38
C144: 58
C145: 90
C146: 59
C147: 17
C148: 33
C149: 99
C150: 76
C151: 61
C152: 43
C153: 54
C154: 18
C155: 54
C156: 48
C157: 52
C158: 84
C159: 44
C160: 36
C161: 14
C162: 25
C163: 77
C164: 73
C165: 90
C166: 68
C167: 13
C168: 14
C169: 89
C170: 14
C171: 65
C172: 23
C173: 14
C174: 63
C175: 88
C176: 82
C177: 62
C178: 26
C179: 100
C180: 30
C181: 84
C182: 24
C183: 25
C184: 57
C185: 40
C186: 52
C187: 45
C188: 59
C189: 13
C190: 98
C191: 86
C192: 36
C193: 33
C194: 93
C195: 73
C196: 59
C197: 28
C198: 39
C199: 90
C200: 31
C201: 82
C202: 53
C203: 72
C204: 25
C205: 93
C206: 44
C207: 92
C208: 77
... 433 more rows

Sheet Calculations (an)
A1: You already know the order of operations (left to right): Parenthesis, Exponents, Multiply/Divide, Add/Subtract
A2: You must learn Excel's Operation Symbols
A3: Parenthesis | B3: ( ) | C3: Shift + 9 and Shift + 0 | D3: Math Operators
A4: Exponents | B4: ^ | C4: Shift + 6 | D4: Math Operators
A5: Multiply | B5: * | C5: Number pad | D5: Math Operators
A6: Divide | B6: / | C6: Number pad | D6: Math Operators
A7: Add | B7: + | C7: Number pad | D7: Math Operators
A8: Subtract | B8: - | C8: Number pad | D8: Math Operators
A9: Join | B9: & | C9: Shift + 7 | D9: Join Symbol - Ampersand
A10: Text in formulas | B10: " " | C10: Shift + " | D10: Text in formulas must be in Double Quotes, like "The average is "
A11: Equal | B11: = | C11: Left of Backspace | D11: Comparative Operators
A12: Greater than | B12: > | C12: Shift + . | D12: Comparative Operators
A13: Greater than or equal to | B13: >= | C13: 2 characters next to each other | D13: Comparative Operators
A14: Less than | B14: < | C14: Shift + , | D14: Comparative Operators
A15: Less than or equal to | B15: <= | C15: 2 characters next to each other | D15: Comparative Operators
A16: Not | B16: <> | C16: 2 characters next to each other | D16: Comparative Operators
A18: When you make calculations, you can use Formulas
A19: Formulas Start with the Equal Sign
A21: Formula for arithmetic | C21: Formula that uses Function
A22: X | C22: Scores
A23: 8.75 | C23: 100
A24: Average | C24: 88
A25: 10.5 | C25: 43
A26: (X-Average)^2 | C26: 95 | D26: =100+88+43+95+88 -> 414 | H26: Formula Notes:
A27: =(A23-A25)^2 -> 3.0625 | C27: 88 | D27: =C23+C24+C25+C26+C27 -> 414 | H27: To Create a Formula, type an equal sign as the first character in the cell
C28: Add = SUM | D28: =SUM(C23:C27) -> 414 | H28: Put formula inputs (numbers etc.) in cells and refer to numbers with cell references
C29: Mean = AVERAGE = | D29: =AVERAGE(C23:C27) -> 82.8 | F29: Older | H29: Put cell references in formulas with Mouse or Arrow Keys
C30: MODE = MODE.SNGL | D30: =_xlfn.MODE.SNGL(C23:C27) -> 88 | F30: =MODE(C23:C27) -> 88 | H30: Put cell in edit mode = F2
C31: Standard Deviation = STDEV.S | D31: =_xlfn.STDEV.S(C23:C27) -> 22.81885186 | F31: =STDEV(C23:C27) -> 22.81885186 | H31: Esc Key = revert back to what was in cell before you put cell in edit mode
C32: Criteria | D32: 90 | H32: To search for functions, use the fx button on the Formula Bar
C33: ="Count # >= "&D32 -> Count # >= 90 | D33: =COUNTIF(C23:C27,">="&D32) -> 2 | H33: When creating COUNTIF or COUNTIFS functions put comparative operators in
C34: Criteria 1 | D34: 50 | H34: Double Quotes, like: ">=", and use Join Symbol (&) to join comparative operator
C35: Criteria 2 | D35: 100 | H35: and number.
C36: ="Counting Values Between "&D34&" and "&D35&" (inclusive)" -> Counting Values Between 50 and 100 (inclusive) | D36: =COUNTIFS(C23:C27,">="&D34,C23:C27,"<="&D35) -> 4 | H36: Types of Formulas: Calculating, Text, Logical
C37: Revenue | D37: 1000 | H37: Keyboard shortcut for Auto Sum: Alt + =
C38: Expense 1 | D38: 250 | H38: Keyboard shortcut to jump to bottom of a column: Ctrl + Arrow
C39: Expense 2 | D39: 100 | H39: Keyboard shortcut for highlighting a column: Ctrl + Shift + Arrow
C40: Expense 3 | D40: 395
C41: Net Income | D41: =D37-SUM(D38:D40) -> 255
C43: All formulas so far have been "Calculating Formulas"
C45: Text Formula
C46: ="The average is "&D29 -> The average is 82.8
C48: TRUE/FALSE formula: Logical Formulas
C49: =D30>D29 -> TRUE | D49: Is Mode greater than Average: TRUE or FALSE?
C52: Sales | D52: Total
C53: 95 | D53: =SUM(C53:C641) -> 32200
C54: 100
C55: 40
C56: 65
C57: 89
C58: 75
C59: 94
C60: 81
C61: 43
C62: 50
C63: 10
C64: 74
C65: 59
C66: 20
C67: 84
C68: 91
C69: 60
C70: 43
C71: 18
C72: 31
C73: 86
C74: 13
C75: 44
C76: 100
C77: 61
C78: 84
C79: 70
C80: 92
C81: 18
C82: 97
C83: 88
C84: 43
C85: 53
C86: 49
C87: 48
C88: 43
C89: 34
C90: 14
C91: 85
C92: 39
C93: 16
C94: 33
C95: 22
C96: 63
C97: 49
C98: 100
C99: 69
C100: 37
C101: 89
C102: 80
C103: 55
C104: 87
C105: 38
C106: 50
C107: 19
C108: 56
C109: 35
C110: 71
C111: 41
C112: 39
C113: 71
C114: 60
C115: 39
C116: 48
C117: 75
C118: 40
C119: 12
C120: 69
C121: 53
C122: 29
C123: 30
C124: 10
C125: 78
C126: 74
C127: 56
C128: 65
C129: 62
C130: 66
C131: 26
C132: 34
C133: 88
C134: 12
C135: 38
C136: 46
C137: 59
C138: 95
C139: 52
C140: 64
C141: 76
C142: 36
C143: 38
C144: 58
C145: 90
C146: 59
C147: 17
C148: 33
C149: 99
C150: 76
C151: 61
C152: 43
C153: 54
C154: 18
C155: 54
C156: 48
C157: 52
C158: 84
C159: 44
C160: 36
C161: 14
C162: 25
C163: 77
C164: 73
C165: 90
C166: 68
C167: 13
C168: 14
C169: 89
C170: 14
C171: 65
C172: 23
C173: 14
C174: 63
C175: 88
C176: 82
C177: 62
C178: 26
C179: 100
C180: 30
C181: 84
C182: 24
C183: 25
C184: 57
C185: 40
C186: 52
C187: 45
C188: 59
C189: 13
C190: 98
C191: 86
C192: 36
C193: 33
C194: 93
C195: 73
C196: 59
C197: 28
C198: 39
C199: 90
C200: 31
C201: 82
C202: 53
C203: 72
C204: 25
C205: 93
C206: 44
C207: 92
... 434 more rows

Sheet Number Formatting
A1: Formatting is a Façade. It sits on top of the value or text that is entered into the cell.
A2: Don't get tricked by formatting. When in doubt apply the General Format in the Number tab and see what is really in the cell.
A3: Format Cells Dialog Box keyboard shortcut: Ctrl + 1.
A4: The Number tab in the Format Dialog Box controls what Number format is applied.
A7: Accounting Number format | C7: Percentages
A8: 4.125 | C8: Step 0 | D8: 0.03
A9: 5.1258 | C9: Step 1 | D9: .03*100 = 3
A10: 0.0598 | C10: Step 2 | D10: 3%
A12: Comma Number format | C12: Percentage Number format
A13: 4.125 | C13: Situation 1: | D13: Type .03 in cell, then add % format
A14: 5.1258 | C14: Situation 2: | D14: Type 3 in cell, then add % format
A15: 0.0598 | C15: Situation 3: | D15: Add % format, then type 3, Enter
C16: Situation 4: | D16: Add % format, then type .03, Enter
A17: Currency Number format | C17: Situation 5: | D17: Add % format as you type
A18: 4.125 | C18: Situation 6: | D18: Type .025, then add % from ribbon
A19: 5.1258
A20: 0.0598 | C20: To See Proportions or Probabilities without Percentage Number Format, Apply General Number format or Increase Decimals.
D21: Percentage with No Decimals are showing | E21: 0.12589
D22: Percentage with Two Decimal Showing | E22: 0.2558
D23: Two Decimal Showing | E23: 0.012454
D24: No Decimal Showing | E24: 0.49 | G24: 3 | H24: All
D25: The proportion of students in past who received a 3.0 | G25: 42 | H25: 1255
D26: Based on last quarters class the probability that you will get a 3.0 is: | G26: 4 | H26: 32

Sheet Number Formatting (an)
A1: Formatting is a Façade. It sits on top of the value or text that is entered into the cell.
A2: Don't get tricked by formatting. When in doubt apply the General Format in the Number tab and see what is really in the cell.
A3: Format Cells Dialog Box keyboard shortcut: Ctrl + 1.
A4: The Number tab in the Format Dialog Box controls what Number format is applied.
A7: Accounting Number format | C7: Percentages
A8: 4.125 | C8: Step 0 | D8: 0.03
A9: 5.1258 | C9: Step 1 | D9: .03*100 = 3
A10: 0.0598 | C10: Step 2 | D10: 3%
A12: Comma Number format | C12: Percentage Number format
A13: 4.125 | C13: Situation 1: | D13: Type .03 in cell, then add % format | E13: 0.03
A14: 5.1258 | C14: Situation 2: | D14: Type 3 in cell, then add % format | E14: 3
A15: 0.0598 | C15: Situation 3: | D15: Add % format, then type 3, Enter | E15: 0.03
C16: Situation 4: | D16: Add % format, then type .03, Enter | E16: 0.03
A17: Currency Number format | C17: Situation 5: | D17: Add % format as you type | E17: 0.03
A18: 4.125 | C18: Situation 6: | D18: Type .025, then add % from ribbon | E18: 0.025
A19: 5.1258
A20: 0.0598 | C20: To See Proportions or Probabilities without Percentage Number Format, Apply General Number format or Increase Decimals.
D21: Percentage with No Decimals are showing | E21: 0.12589
D22: Percentage with Two Decimal Showing | E22: 0.2558 | G22: General Number Format = Ctrl + Shift + ~
D23: Two Decimal Showing | E23: 0.012454
D24: No Decimal Showing | E24: 0.49 | G24: 3 | H24: All
D25: The proportion of students in past who received a 3.0 | E25: =G25/H25 -> 0.03346613546 | G25: 42 | H25: 1255
D26: Based on last quarters class the probability that you will get a 3.0 is: | E26: =G26/H26 -> 0.125 | G26: 4 | H26: 32
E28: =100*E25 -> 3.346613546

Sheet DataSets
E1: Data Sets Must Follow These Rules:
A3: Date | B3: AutoSold | C3: Sales | E3: 1 | F3: <<== Column Headers, Column Labels, Field Names, Variables
A4: 2011-06-13 | B4: Honda | C4: 15546 | E4: 2 | F4: <<== Each row is called a Record or Observation
A5: 2011-06-14 | B5: Honda | C5: 25857 | F5: <<== Each row is called a Record or Observation
A6: 2011-06-15 | B6: Honda | C6: 22494 | F6: <<== Each row is called a Record or Observation
A7: 2011-06-16 | B7: Toyota | C7: 22479 | F7: <<== Each row is called a Record or Observation
A8: 2011-06-17 | B8: Toyota | C8: 30664 | F8: <<== Each row is called a Record or Observation
A9: 2011-06-18 | B9: Ford | C9: 19252 | F9: <<== Each row is called a Record or Observation
A10: 2011-06-19 | B10: Toyota | C10: 26478 | F10: <<== Each row is called a Record or Observation
A11: 2011-06-20 | B11: Toyota | C11: 15996 | F11: <<== Each row is called a Record or Observation
A13: AutoSold | B13: Frequency (Count) | E13: 3 | F13: Blank cells, Excel Row Headers (Numbers), or Excel Column
A14: Honda | F14: Headers (Letters) must surround data set
A15: Toyota
A16: Ford | E16: 4 | F16: No blank field names, and try not to have blanks in data set.
A20: 5 | B20: Elements = Primary Key (Unique Identifier) = Unique List = Listing of each
B21: items of interest only once so you can make some summary calculation.

Sheet Data Analysis(1)
A1: Sorting can be done with the A to Z or Z to A buttons on the Data Ribbon: BE SURE TO ONLY HAVE ONE CELL SELECTED IN THE COLUMNS THAT YOU WANT TO SORT UPON.
A3: Date | B3: Sales Rep | C3: Customer | D3: Sales | E3: COGS | F3: Region | H3: Don’T Worry
A4: 2007-06-06 | B4: Chin | C4: PCC | D4: 138 | E4: 67.62 | F4: East | H4: If Your Data
A5: 2007-11-17 | B5: Sioux | C5: Safeway | D5: 230 | E5: 165.6 | F5: NorthEast | H5: Set Is Not In
A6: 2005-07-06 | B6: Tina | C6: Safeway | D6: 130 | E6: 62.4 | F6: NorthWest | H6: The Same
A7: 2006-11-06 | B7: Joy | C7: Coop | D7: 188 | E7: 112.8 | F7: NorthWest | H7: Order When
A8: 2008-03-21 | B8: Chin | C8: Coop | D8: 203 | E8: 158.34 | F8: NorthWest | H8: You Start
A9: 2005-06-16 | B9: Sioux | C9: Safeway | D9: 1656 | E9: 1275.12 | F9: MidWest | H9: Watching
A10: 2006-03-12 | B10: Sioux | C10: Fred Myer | D10: 156 | E10: 84.24 | F10: West | H10: The Video.
A11: 2006-08-08 | B11: Sioux | C11: Whole Foods | D11: 177 | E11: 83.19 | F11: NorthEast | H11: After You
A12: 2007-09-10 | B12: Tina | C12: Coop | D12: 53 | E12: 32.86 | F12: West | H12: Sort You Will
A13: 2007-11-16 | B13: Sioux | C13: Coop | D13: 998 | E13: 658.68 | F13: East | H13: See The
A14: 2006-12-06 | B14: Joy | C14: PCC | D14: 186 | E14: 81.84 | F14: NorthEast | H14: Same Thing.
A15: 2006-03-18 | B15: Sioux | C15: Fred Myer | D15: 87 | E15: 34.8 | F15: East
A16: 2007-12-03 | B16: Joy | C16: PCC | D16: 1028 | E16: 771 | F16: East
A17: 2006-01-07 | B17: Sioux | C17: Coop | D17: 93 | E17: 60.45 | F17: NorthEast
A18: 2005-09-20 | B18: Sioux | C18: Coop | D18: 70 | E18: 42.7 | F18: NorthEast
A19: 2006-10-18 | B19: Tom | C19: Coop | D19: 80 | E19: 48.8 | F19: East
A20: 2006-10-02 | B20: Tom | C20: Whole Foods | D20: 219 | E20: 109.5 | F20: East
A21: 2006-07-17 | B21: Chin | C21: PCC | D21: 88 | E21: 37.84 | F21: East
A22: 2006-05-21 | B22: Joy | C22: Fred Myer | D22: 103 | E22: 67.98 | F22: MidWest
A23: 2007-12-25 | B23: Tina | C23: PCC | D23: 131 | E23: 79.91 | F23: MidWest
A24: 2008-06-14 | B24: Sioux | C24: Whole Foods | D24: 125 | E24: 55 | F24: NorthEast
A25: 2007-05-06 | B25: Chin | C25: PCC | D25: 1940 | E25: 931.2 | F25: West
A26: 2008-06-22 | B26: Tom | C26: PCC | D26: 225 | E26: 153 | F26: MidWest
A27: 2005-08-23 | B27: Tom | C27: Whole Foods | D27: 178 | E27: 115.7 | F27: NorthWest
A28: 2007-04-16 | B28: Tom | C28: Safeway | D28: 159 | E28: 116.07 | F28: NorthEast
A29: 2008-02-10 | B29: Sioux | C29: Safeway | D29: 183 | E29: 115.29 | F29: West
A30: 2007-12-11 | B30: Sioux | C30: Whole Foods | D30: 1680 | E30: 705.6 | F30: West
A31: 2006-12-18 | B31: Tina | C31: Fred Myer | D31: 231 | E31: 106.26 | F31: NorthEast
A32: 2008-04-20 | B32: Sioux | C32: Fred Myer | D32: 1399 | E32: 1077.23 | F32: NorthEast
A33: 2007-01-18 | B33: Sioux | C33: Fred Myer | D33: 233 | E33: 132.81 | F33: West
A34: 2005-08-22 | B34: Tom | C34: Fred Myer | D34: 250 | E34: 145 | F34: MidWest
A35: 2008-05-27 | B35: Chin | C35: Whole Foods | D35: 193 | E35: 140.89 | F35: East
A36: 2005-11-25 | B36: Joy | C36: Fred Myer | D36: 183 | E36: 78.69 | F36: MidWest
A37: 2007-02-20 | B37: Joy | C37: Fred Myer | D37: 750 | E37: 502.5 | F37: NorthWest
A38: 2006-12-30 | B38: Tom | C38: Whole Foods | D38: 1928 | E38: 867.6 | F38: East
A39: 2006-06-26 | B39: Chin | C39: PCC | D39: 136 | E39: 108.8 | F39: East
A40: 2008-03-30 | B40: Sioux | C40: PCC | D40: 63 | E40: 30.24 | F40: MidWest
A41: 2007-01-19 | B41: Joy | C41: Fred Myer | D41: 171 | E41: 104.31 | F41: West
A42: 2007-04-18 | B42: Joy | C42: PCC | D42: 191 | E42: 116.51 | F42: East
A43: 2007-02-09 | B43: Sioux | C43: Whole Foods | D43: 1276 | E43: 714.56 | F43: MidWest
A44: 2007-03-27 | B44: Sioux | C44: Coop | D44: 1450 | E44: 1116.5 | F44: NorthEast
A45: 2006-12-31 | B45: Chin | C45: PCC | D45: 216 | E45: 155.52 | F45: NorthWest
A46: 2005-12-08 | B46: Sioux | C46: PCC | D46: 214 | E46: 162.64 | F46: NorthWest
A47: 2005-08-03 | B47: Tom | C47: PCC | D47: 232 | E47: 160.08 | F47: West
A48: 2007-04-28 | B48: Chin | C48: PCC | D48: 104 | E48: 72.8 | F48: NorthEast
A49: 2008-05-22 | B49: Sioux | C49: Fred Myer | D49: 72 | E49: 55.44 | F49: West
A50: 2007-03-04 | B50: Tina | C50: PCC | D50: 1061 | E50: 583.55 | F50: West
A51: 2006-01-05 | B51: Chin | C51: Whole Foods | D51: 151 | E51: 64.93 | F51: MidWest
A52: 2006-05-20 | B52: Sioux | C52: Safeway | D52: 131 | E52: 104.8 | F52: NorthEast
A53: 2005-08-01 | B53: Sioux | C53: Whole Foods | D53: 949 | E53: 740.22 | F53: East
A54: 2008-03-02 | B54: Joy | C54: Fred Myer | D54: 129 | E54: 81.27 | F54: MidWest
A55: 2007-12-27 | B55: Sioux | C55: Fred Myer | D55: 244 | E55: 185.44 | F55: East
A56: 2005-09-19 | B56: Joy | C56: PCC | D56: 83 | E56: 60.59 | F56: East
A57: 2007-07-09 | B57: Chin | C57: Whole Foods | D57: 123 | E57: 63.96 | F57: MidWest
A58: 2008-01-29 | B58: Sioux | C58: Safeway | D58: 160 | E58: 91.2 | F58: NorthEast
A59: 2007-12-07 | B59: Chin | C59: Coop | D59: 763 | E59: 480.69 | F59: East
A60: 2006-05-18 | B60: Tina | C60: Safeway | D60: 115 | E60: 57.5 | F60: NorthWest
A61: 2007-03-16 | B61: Joy | C61: PCC | D61: 82 | E61: 52.48 | F61: MidWest
A62: 2005-10-03 | B62: Chin | C62: Fred Myer | D62: 223 | E62: 115.96 | F62: NorthWest
A63: 2007-02-02 | B63: Chin | C63: Coop | D63: 1104 | E63: 805.92 | F63: East
A64: 2008-05-23 | B64: Sioux | C64: Safeway | D64: 96 | E64: 50.88 | F64: West
A65: 2006-11-26 | B65: Tina | C65: PCC | D65: 88 | E65: 37.84 | F65: NorthEast
A66: 2008-03-02 | B66: Chin | C66: Safeway | D66: 77 | E66: 31.57 | F66: NorthWest
A67: 2005-06-13 | B67: Chin | C67: PCC | D67: 130 | E67: 85.8 | F67: NorthWest
A68: 2008-03-18 | B68: Chin | C68: Fred Myer | D68: 61 | E68: 45.75 | F68: East
A69: 2007-04-28 | B69: Sioux | C69: Fred Myer | D69: 1746 | E69: 1187.28 | F69: West
A70: 2006-09-26 | B70: Tina | C70: Whole Foods | D70: 760 | E70: 342 | F70: NorthWest
A71: 2006-11-28 | B71: Tom | C71: Fred Myer | D71: 208 | E71: 160.16 | F71: NorthWest
A72: 2007-07-17 | B72: Joy | C72: Safeway | D72: 243 | E72: 182.25 | F72: East
A73: 2005-08-06 | B73: Tom | C73: PCC | D73: 157 | E73: 108.33 | F73: NorthEast
A74: 2006-12-29 | B74: Sioux | C74: Coop | D74: 232 | E74: 120.64 | F74: NorthEast
A75: 2007-09-07 | B75: Chin | C75: PCC | D75: 170 | E75: 136 | F75: NorthWest
A76: 2007-05-31 | B76: Joy | C76: Coop | D76: 1223 | E76: 758.26 | F76: West
A77: 2007-01-30 | B77: Joy | C77: Whole Foods | D77: 237 | E77: 123.24 | F77: West
A78: 2005-10-14 | B78: Joy | C78: PCC | D78: 1386 | E78: 1108.8 | F78: NorthWest
A79: 2006-08-16 | B79: Chin | C79: Safeway | D79: 114 | E79: 64.98 | F79: East
A80: 2007-12-15 | B80: Sioux | C80: Whole Foods | D80: 250 | E80: 110 | F80: NorthWest
A81: 2007-12-03 | B81: Chin | C81: Fred Myer | D81: 80 | E81: 40.8 | F81: MidWest
A82: 2006-01-25 | B82: Tina | C82: Safeway | D82: 188 | E82: 75.2 | F82: NorthEast
A83: 2008-03-16 | B83: Chin | C83: Fred Myer | D83: 190 | E83: 98.8 | F83: MidWest
A84: 2006-10-29 | B84: Chin | C84: Fred Myer | D84: 195 | E84: 78 | F84: West
A85: 2008-02-10 | B85: Tom | C85: Safeway | D85: 78 | E85: 44.46 | F85: NorthEast
A86: 2007-07-17 | B86: Joy | C86: Safeway | D86: 815 | E86: 448.25 | F86: NorthEast
A87: 2007-12-27 | B87: Sioux | C87: Coop | D87: 131 | E87: 55.02 | F87: NorthWest
A88: 2007-11-07 | B88: Tom | C88: Fred Myer | D88: 814 | E88: 407 | F88: NorthEast
A89: 2008-01-24 | B89: Tina | C89: Fred Myer | D89: 154 | E89: 120.12 | F89: West
A90: 2008-05-14 | B90: Chin | C90: Fred Myer | D90: 177 | E90: 79.65 | F90: NorthEast
A91: 2006-11-08 | B91: Chin | C91: Fred Myer | D91: 1023 | E91: 470.58 | F91: NorthWest
A92: 2005-12-21 | B92: Joy | C92: Safeway | D92: 194 | E92: 147.44 | F92: MidWest
A93: 2005-10-01 | B93: Sioux | C93: Fred Myer | D93: 113 | E93: 83.62 | F93: West
A94: 2005-08-08 | B94: Joy | C94: Fred Myer | D94: 224 | E94: 145.6 | F94: NorthWest
A95: 2008-01-30 | B95: Chin | C95: Coop | D95: 248 | E95: 181.04 | F95: East
A96: 2007-01-22 | B96: Sioux | C96: Fred Myer | D96: 810 | E96: 380.7 | F96: MidWest
A97: 2007-02-07 | B97: Tina | C97: Safeway | D97: 57 | E97: 40.47 | F97: West
A98: 2007-08-10 | B98: Tom | C98: Safeway | D98: 236 | E98: 167.56 | F98: West
A99: 2006-11-04 | B99: Joy | C99: PCC | D99: 159 | E99: 71.55 | F99: NorthEast
A100: 2007-03-01 | B100: Chin | C100: Fred Myer | D100: 241 | E100: 161.47 | F100: NorthEast
A101: 2006-03-15 | B101: Chin | C101: Fred Myer | D101: 224 | E101: 100.8 | F101: East
A102: 2007-04-30 | B102: Joy | C102: PCC | D102: 190 | E102: 104.5 | F102: MidWest
A103: 2007-04-03 | B103: Chin | C103: PCC | D103: 696 | E103: 542.88 | F103: MidWest
A104: 2007-01-06 | B104: Joy | C104: PCC | D104: 88 | E104: 40.48 | F104: West
A105: 2007-01-08 | B105: Chin | C105: Whole Foods | D105: 137 | E105: 79.46 | F105: NorthEast
A106: 2008-05-06 | B106: Chin | C106: Fred Myer | D106: 1945 | E106: 1108.65 | F106: NorthEast
A107: 2006-10-10 | B107: Joy | C107: PCC | D107: 77 | E107: 46.97 | F107: East
A108: 2005-12-04 | B108: Chin | C108: Safeway | D108: 93 | E108: 61.38 | F108: NorthWest
A109: 2005-12-04 | B109: Sioux | C109: PCC | D109: 157 | E109: 73.79 | F109: West
A110: 2005-10-24 | B110: Tina | C110: Whole Foods | D110: 119 | E110: 84.49 | F110: NorthEast
A111: 2006-10-28 | B111: Chin | C111: Fred Myer | D111: 152 | E111: 95.76 | F111: East
A112: 2007-08-28 | B112: Tom | C112: Whole Foods | D112: 239 | E112: 160.13 | F112: NorthEast
A113: 2007-06-08 | B113: Joy | C113: Whole Foods | D113: 191 | E113: 135.61 | F113: West
A114: 2006-04-17 | B114: Sioux | C114: PCC | D114: 1983 | E114: 1110.48 | F114: NorthEast
A115: 2006-02-23 | B115: Tina | C115: Fred Myer | D115: 127 | E115: 85.09 | F115: NorthWest
A116: 2007-07-05 | B116: Tina | C116: Fred Myer | D116: 167 | E116: 93.52 | F116: NorthEast
A117: 2007-06-27 | B117: Tina | C117: Fred Myer | D117: 1947 | E117: 1343.43 | F117: East
A118: 2007-12-03 | B118: Joy | C118: Coop | D118: 139 | E118: 65.33 | F118: NorthEast
A119: 2006-04-30 | B119: Chin | C119: Safeway | D119: 217 | E119: 171.43 | F119: NorthEast
A120: 2008-06-13 | B120: Joy | C120: Coop | D120: 53 | E120: 24.38 | F120: NorthWest
A121: 2006-06-13 | B121: Joy | C121: Safeway | D121: 51 | E121: 26.52 | F121: East
A122: 2006-10-04 | B122: Sioux | C122: PCC | D122: 72 | E122: 32.4 | F122: East
A123: 2008-06-24 | B123: Joy | C123: Whole Foods | D123: 78 | E123: 59.28 | F123: MidWest
A124: 2008-02-06 | B124: Joy | C124: PCC | D124: 151 | E124: 95.13 | F124: NorthEast
A125: 2006-01-10 | B125: Joy | C125: Safeway | D125: 189 | E125: 143.64 | F125: MidWest
A126: 2008-05-08 | B126: Tina | C126: Whole Foods | D126: 110 | E126: 86.9 | F126: West
A127: 2007-02-10 | B127: Sioux | C127: Coop | D127: 173 | E127: 115.91 | F127: NorthWest
A128: 2006-01-20 | B128: Joy | C128: PCC | D128: 153 | E128: 81.09 | F128: MidWest
A129: 2008-04-12 | B129: Tom | C129: PCC | D129: 55 | E129: 42.35 | F129: NorthEast
A130: 2008-03-27 | B130: Tina | C130: Fred Myer | D130: 220 | E130: 107.8 | F130: East
A131: 2007-06-23 | B131: Tom | C131: PCC | D131: 191 | E131: 108.87 | F131: MidWest
A132: 2006-04-17 | B132: Sioux | C132: Safeway | D132: 1062 | E132: 626.58 | F132: East
A133: 2006-02-02 | B133: Tina | C133: Fred Myer | D133: 77 | E133: 30.8 | F133: West
A134: 2007-03-19 | B134: Joy | C134: Safeway | D134: 191 | E134: 78.31 | F134: NorthEast
A135: 2007-02-17 | B135: Joy | C135: Coop | D135: 139 | E135: 98.69 | F135: MidWest
A136: 2008-06-03 | B136: Sioux | C136: Fred Myer | D136: 220 | E136: 149.6 | F136: West
A137: 2008-05-12 | B137: Sioux | C137: Safeway | D137: 82 | E137: 59.86 | F137: MidWest
A138: 2005-11-03 | B138: Tina | C138: Coop | D138: 130 | E138: 75.4 | F138: MidWest
A139: 2008-02-26 | B139: Tom | C139: Whole Foods | D139: 237 | E139: 158.79 | F139: MidWest
A140: 2006-11-29 | B140: Joy | C140: Fred Myer | D140: 65 | E140: 48.75 | F140: East
A141: 2005-11-01 | B141: Joy | C141: PCC | D141: 145 | E141: 105.85 | F141: West
A142: 2006-03-14 | B142: Sioux | C142: Fred Myer | D142: 203 | E142: 83.23 | F142: NorthEast
A143: 2006-04-01 | B143: Joy | C143: PCC | D143: 186 | E143: 122.76 | F143: NorthWest
A144: 2007-11-18 | B144: Joy | C144: Coop | D144: 1541 | E144: 1063.29 | F144: NorthEast
A145: 2005-08-31 | B145: Joy | C145: Safeway | D145: 171 | E145: 88.92 | F145: MidWest
A146: 2007-11-26 | B146: Joy | C146: PCC | D146: 869 | E146: 521.4 | F146: NorthEast
A147: 2007-08-06 | B147: Chin | C147: Coop | D147: 107 | E147: 62.06 | F147: West
A148: 2007-12-01 | B148: Tom | C148: Coop | D148: 158 | E148: 71.1 | F148: West
A149: 2007-07-29 | B149: Tom | C149: Whole Foods | D149: 137 | E149: 60.28 | F149: MidWest
A150: 2008-02-27 | B150: Joy | C150: Coop | D150: 240 | E150: 151.2 | F150: NorthEast
A151: 2005-12-21 | B151: Chin | C151: Safeway | D151: 1151 | E151: 563.99 | F151: West
A152: 2007-06-19 | B152: Sioux | C152: Fred Myer | D152: 93 | E152: 68.82 | F152: East
A153: 2007-03-13 | B153: Chin | C153: Whole Foods | D153: 161 | E153: 78.89 | F153: MidWest
A154: 2006-10-07 | B154: Sioux | C154: Fred Myer | D154: 209 | E154: 100.32 | F154: NorthWest
A155: 2006-05-30 | B155: Chin | C155: Whole Foods | D155: 97 | E155: 50.44 | F155: NorthWest
A156: 2008-04-02 | B156: Chin | C156: Fred Myer | D156: 189 | E156: 75.6 | F156: MidWest
A157: 2006-08-11 | B157: Tina | C157: Fred Myer | D157: 235 | E157: 157.45 | F157: East
A158: 2005-11-17 | B158: Tom | C158: Coop | D158: 214 | E158: 136.96 | F158: West
A159: 2005-08-08 | B159: Tina | C159: Fred Myer | D159: 144 | E159: 67.68 | F159: NorthWest
A160: 2007-03-09 | B160: Tom | C160: PCC | D160: 61 | E160: 45.14 | F160: NorthEast
A161: 2007-11-26 | B161: Tom | C161: Whole Foods | D161: 160 | E161: 86.4 | F161: West
A162: 2007-03-13 | B162: Tina | C162: Whole Foods | D162: 102 | E162: 61.2 | F162: West
A163: 2005-08-05 | B163: Joy | C163: Coop | D163: 89 | E163: 51.62 | F163: West
A164: 2007-03-16 | B164: Chin | C164: Whole Foods | D164: 137 | E164: 105.49 | F164: MidWest
A165: 2008-04-18 | B165: Tom | C165: Fred Myer | D165: 183 | E165: 78.69 | F165: NorthEast
A166: 2006-07-17 | B166: Tom | C166: Fred Myer | D166: 188 | E166: 82.72 | F166: NorthEast
A167: 2006-04-11 | B167: Tom | C167: Fred Myer | D167: 1779 | E167: 1298.67 | F167: East
A168: 2007-12-11 | B168: Chin | C168: Safeway | D168: 219 | E168: 168.63 | F168: NorthEast
A169: 2006-04-22 | B169: Tina | C169: Whole Foods | D169: 216 | E169: 110.16 | F169: West
A170: 2005-09-06 | B170: Chin | C170: PCC | D170: 1158 | E170: 509.52 | F170: East
A171: 2007-12-07 | B171: Chin | C171: PCC | D171: 75 | E171: 47.25 | F171: NorthEast
A172: 2006-11-06 | B172: Tom | C172: Safeway | D172: 240 | E172: 100.8 | F172: East
A173: 2007-08-07 | B173: Tom | C173: Safeway | D173: 55 | E173: 37.4 | F173: NorthEast
A174: 2008-06-18 | B174: Chin | C174: Safeway | D174: 86 | E174: 55.04 | F174: East
A175: 2008-06-05 | B175: Sioux | C175: Coop | D175: 181 | E175: 86.88 | F175: West
A176: 2008-05-07 | B176: Chin | C176: PCC | D176: 126 | E176: 75.6 | F176: MidWest
A177: 2007-09-16 | B177: Sioux | C177: Fred Myer | D177: 206 | E177: 115.36 | F177: East
A178: 2008-06-22 | B178: Sioux | C178: PCC | D178: 166 | E178: 132.8 | F178: MidWest
A179: 2008-06-22 | B179: Joy | C179: Safeway | D179: 1407 | E179: 830.13 | F179: East
A180: 2007-09-22 | B180: Tina | C180: Coop | D180: 181 | E180: 139.37 | F180: MidWest
A181: 2008-01-25 | B181: Tom | C181: PCC | D181: 157 | E181: 120.89 | F181: MidWest
A182: 2006-10-12 | B182: Tom | C182: PCC | D182: 234 | E182: 102.96 | F182: East
A183: 2006-08-11 | B183: Tina | C183: Safeway | D183: 238 | E183: 166.6 | F183: West
A184: 2007-01-14 | B184: Tom | C184: Safeway | D184: 203 | E184: 87.29 | F184: East
A185: 2008-03-27 | B185: Chin | C185: Safeway | D185: 160 | E185: 108.8 | F185: East
A186: 2007-10-07 | B186: Joy | C186: Fred Myer | D186: 186 | E186: 126.48 | F186: West
A187: 2006-02-28 | B187: Tina | C187: Coop | D187: 628 | E187: 263.76 | F187: East
A188: 2007-02-03 | B188: Chin | C188: Fred Myer | D188: 63 | E188: 27.09 | F188: East
A189: 2007-10-09 | B189: Tom | C189: Coop | D189: 199 | E189: 95.52 | F189: East
A190: 2006-09-17 | B190: Tina | C190: Safeway | D190: 94 | E190: 47 | F190: NorthEast
A191: 2006-06-20 | B191: Chin | C191: Whole Foods | D191: 1622 | E191: 713.68 | F191: West
A192: 2005-08-13 | B192: Sioux | C192: Safeway | D192: 151 | E192: 102.68 | F192: MidWest
A193: 2005-09-02 | B193: Chin | C193: Coop | D193: 52 | E193: 35.88 | F193: NorthEast
A194: 2005-12-31 | B194: Tom | C194: Safeway | D194: 66 | E194: 34.98 | F194: East
A195: 2007-12-08 | B195: Chin | C195: Fred Myer | D195: 60 | E195: 27.6 | F195: MidWest
A196: 2006-07-23 | B196: Tom | C196: Fred Myer | D196: 66 | E196: 31.02 | F196: West
A197: 2007-07-17 | B197: Tina | C197: Whole Foods | D197: 58 | E197: 24.36 | F197: West
A198: 2007-07-18 | B198: Joy | C198: Safeway | D198: 81 | E198: 50.22 | F198: East
A199: 2005-10-31 | B199: Tina | C199: Whole Foods | D199: 73 | E199: 34.31 | F199: West
A200: 2006-03-30 | B200: Chin | C200: PCC | D200: 55 | E200: 22 | F200: East
A201: 2007-06-25 | B201: Joy | C201: Coop | D201: 249 | E201: 179.28 | F201: West
... 392 more rows

Sheet Data Analysis(2)
A1: PivotTables are one of the most powerful features In Excel. They can summarize data with multiple criteria. The key to Pivot Tables is to understand Columns and Rows.
A2: To create PivotTable, drag and drop "Fields" in "Field List" to "Row Labels", "Column Labels", "Values" or "Report Filter".
A3: 1st step after creating PivotTable is to change Layout to "Tabular Layout": 1) PivotTable Tools Design Ribbon Tab, 2) Layout Group, 3) Report Layout, 4) "Show In Tabular Form".
A4: To change the function (SUM, AVERAGE, etc.), Number format or formula for a Pivot Table, Right-click the "Value" field in the PivotTable and point to "Value Field Settings".
A5: Basic Formatting for a PivotTable can be done in the PivotTable Tools Ribbon Tabs or from the Home Ribbon. Number Formatting should always "Value Field Settings" dialog box.
A6: Right-click method for changing function: "Summarize Values by"
A7: Right-click method for changing formula: "Show Values as"
A8: Right-click method for changing Number format "Number Format"
A11: Date | B11: Sales Rep | C11: Customer | D11: Sales | E11: COGS | F11: Region
A12: 2008-02-12 | B12: Joy | C12: Fred Myer | D12: 132 | E12: 80.52 | F12: MidWest
A13: 2006-07-25 | B13: Joy | C13: Fred Myer | D13: 88 | E13: 61.6 | F13: NorthWest
A14: 2006-01-13 | B14: Tom | C14: Safeway | D14: 70 | E14: 51.8 | F14: NorthWest
A15: 2008-06-02 | B15: Joy | C15: Safeway | D15: 119 | E15: 61.88 | F15: East
A16: 2007-06-10 | B16: Chin | C16: Whole Foods | D16: 519 | E16: 285.45 | F16: NorthWest
A17: 2007-07-17 | B17: Tina | C17: Whole Foods | D17: 58 | E17: 24.36 | F17: West
A18: 2008-04-10 | B18: Tom | C18: Safeway | D18: 184 | E18: 77.28 | F18: MidWest
A19: 2006-04-26 | B19: Chin | C19: Coop | D19: 1960 | E19: 1509.2 | F19: NorthWest
A20: 2008-02-25 | B20: Joy | C20: Fred Myer | D20: 131 | E20: 96.94 | F20: MidWest
A21: 2006-08-25 | B21: Joy | C21: Whole Foods | D21: 249 | E21: 129.48 | F21: NorthWest
A22: 2006-11-06 | B22: Joy | C22: Coop | D22: 188 | E22: 112.8 | F22: NorthWest
A23: 2007-12-20 | B23: Sioux | C23: Fred Myer | D23: 69 | E23: 36.57 | F23: NorthWest
A24: 2007-07-11 | B24: Chin | C24: Whole Foods | D24: 244 | E24: 173.24 | F24: East
A25: 2005-06-19 | B25: Tina | C25: Fred Myer | D25: 174 | E25: 113.1 | F25: MidWest
A26: 2005-07-25 | B26: Tina | C26: Fred Myer | D26: 161 | E26: 98.21 | F26: West
A27: 2007-04-13 | B27: Chin | C27: Coop | D27: 100 | E27: 43 | F27: NorthEast
A28: 2006-08-11 | B28: Tina | C28: Fred Myer | D28: 235 | E28: 157.45 | F28: East
A29: 2006-02-06 | B29: Tom | C29: Fred Myer | D29: 185 | E29: 146.15 | F29: East
A30: 2005-06-16 | B30: Sioux | C30: Safeway | D30: 1656 | E30: 1275.12 | F30: MidWest
A31: 2005-12-08 | B31: Sioux | C31: PCC | D31: 214 | E31: 162.64 | F31: NorthWest
A32: 2007-05-06 | B32: Sioux | C32: Coop | D32: 192 | E32: 138.24 | F32: MidWest
A33: 2006-04-12 | B33: Tina | C33: PCC | D33: 53 | E33: 29.68 | F33: NorthWest
A34: 2006-02-28 | B34: Tina | C34: Coop | D34: 628 | E34: 263.76 | F34: East
A35: 2006-07-17 | B35: Chin | C35: PCC | D35: 88 | E35: 37.84 | F35: East
A36: 2007-12-07 | B36: Chin | C36: PCC | D36: 75 | E36: 47.25 | F36: NorthEast
A37: 2007-01-10 | B37: Chin | C37: Fred Myer | D37: 128 | E37: 80.64 | F37: West
A38: 2007-05-12 | B38: Chin | C38: Safeway | D38: 155 | E38: 80.6 | F38: NorthEast
A39: 2008-05-06 | B39: Tom | C39: Coop | D39: 1020 | E39: 479.4 | F39: NorthWest
A40: 2006-06-26 | B40: Chin | C40: PCC | D40: 136 | E40: 108.8 | F40: East
A41: 2008-01-29 | B41: Sioux | C41: Safeway | D41: 160 | E41: 91.2 | F41: NorthEast
A42: 2007-10-23 | B42: Sioux | C42: Coop | D42: 124 | E42: 80.6 | F42: NorthEast
A43: 2007-03-31 | B43: Joy | C43: Coop | D43: 196 | E43: 148.96 | F43: MidWest
A44: 2006-05-23 | B44: Chin | C44: Safeway | D44: 141 | E44: 105.75 | F44: MidWest
A45: 2005-10-03 | B45: Chin | C45: Fred Myer | D45: 223 | E45: 115.96 | F45: NorthWest
A46: 2007-01-02 | B46: Sioux | C46: Coop | D46: 85 | E46: 61.2 | F46: NorthWest
A47: 2005-07-21 | B47: Tina | C47: Whole Foods | D47: 248 | E47: 151.28 | F47: MidWest
A48: 2007-05-14 | B48: Tom | C48: Coop | D48: 104 | E48: 61.36 | F48: NorthWest
A49: 2006-03-13 | B49: Chin | C49: Fred Myer | D49: 1550 | E49: 868 | F49: West
A50: 2007-10-17 | B50: Chin | C50: Safeway | D50: 698 | E50: 488.6 | F50: NorthEast
A51: 2007-01-14 | B51: Tom | C51: Safeway | D51: 203 | E51: 87.29 | F51: East
A52: 2008-02-10 | B52: Tom | C52: Safeway | D52: 78 | E52: 44.46 | F52: NorthEast
A53: 2006-04-20 | B53: Chin | C53: Fred Myer | D53: 138 | E53: 99.36 | F53: NorthWest
A54: 2006-05-17 | B54: Sioux | C54: PCC | D54: 139 | E54: 59.77 | F54: NorthWest
A55: 2005-08-23 | B55: Tom | C55: Whole Foods | D55: 178 | E55: 115.7 | F55: NorthWest
A56: 2006-08-18 | B56: Joy | C56: Whole Foods | D56: 203 | E56: 154.28 | F56: NorthEast
A57: 2006-03-01 | B57: Tom | C57: Whole Foods | D57: 90 | E57: 61.2 | F57: West
A58: 2007-12-27 | B58: Sioux | C58: Coop | D58: 131 | E58: 55.02 | F58: NorthWest
A59: 2008-06-22 | B59: Joy | C59: Safeway | D59: 1407 | E59: 830.13 | F59: East
A60: 2006-03-26 | B60: Tom | C60: Safeway | D60: 160 | E60: 123.2 | F60: NorthEast
A61: 2006-04-06 | B61: Tina | C61: PCC | D61: 55 | E61: 26.95 | F61: NorthEast
A62: 2007-09-10 | B62: Tina | C62: Whole Foods | D62: 139 | E62: 88.96 | F62: MidWest
A63: 2007-01-30 | B63: Joy | C63: Whole Foods | D63: 237 | E63: 123.24 | F63: West
A64: 2006-04-24 | B64: Sioux | C64: PCC | D64: 185 | E64: 138.75 | F64: NorthEast
A65: 2006-05-15 | B65: Tom | C65: Whole Foods | D65: 222 | E65: 170.94 | F65: West
A66: 2008-03-02 | B66: Chin | C66: Safeway | D66: 77 | E66: 31.57 | F66: NorthWest
A67: 2007-02-20 | B67: Joy | C67: Fred Myer | D67: 750 | E67: 502.5 | F67: NorthWest
A68: 2007-05-29 | B68: Sioux | C68: Whole Foods | D68: 149 | E68: 119.2 | F68: East
A69: 2006-04-11 | B69: Tom | C69: Fred Myer | D69: 1779 | E69: 1298.67 | F69: East
A70: 2005-10-12 | B70: Sioux | C70: Safeway | D70: 52 | E70: 38.48 | F70: NorthWest
A71: 2007-11-05 | B71: Tom | C71: Safeway | D71: 155 | E71: 120.9 | F71: NorthWest
A72: 2006-09-15 | B72: Joy | C72: PCC | D72: 160 | E72: 124.8 | F72: West
A73: 2006-04-30 | B73: Chin | C73: Safeway | D73: 217 | E73: 171.43 | F73: NorthEast
A74: 2008-04-23 | B74: Chin | C74: Safeway | D74: 219 | E74: 146.73 | F74: East
A75: 2007-10-15 | B75: Tom | C75: Coop | D75: 68 | E75: 31.28 | F75: West
A76: 2007-12-03 | B76: Joy | C76: Coop | D76: 139 | E76: 65.33 | F76: NorthEast
A77: 2006-04-02 | B77: Tom | C77: Fred Myer | D77: 150 | E77: 88.5 | F77: East
A78: 2007-01-17 | B78: Chin | C78: Safeway | D78: 88 | E78: 37.84 | F78: MidWest
A79: 2007-12-03 | B79: Tom | C79: Coop | D79: 1336 | E79: 868.4 | F79: NorthEast
A80: 2007-04-17 | B80: Chin | C80: Safeway | D80: 163 | E80: 130.4 | F80: West
A81: 2006-02-06 | B81: Tom | C81: Coop | D81: 220 | E81: 116.6 | F81: East
A82: 2005-09-19 | B82: Joy | C82: PCC | D82: 83 | E82: 60.59 | F82: East
A83: 2006-10-05 | B83: Tom | C83: PCC | D83: 55 | E83: 28.6 | F83: MidWest
A84: 2007-12-03 | B84: Joy | C84: PCC | D84: 1028 | E84: 771 | F84: East
A85: 2007-02-03 | B85: Chin | C85: Fred Myer | D85: 63 | E85: 27.09 | F85: East
A86: 2005-07-02 | B86: Tina | C86: PCC | D86: 143 | E86: 81.51 | F86: NorthEast
A87: 2008-05-21 | B87: Chin | C87: Whole Foods | D87: 62 | E87: 29.14 | F87: NorthEast
A88: 2007-07-01 | B88: Sioux | C88: Fred Myer | D88: 55 | E88: 23.1 | F88: NorthEast
A89: 2006-12-25 | B89: Chin | C89: Whole Foods | D89: 1369 | E89: 876.16 | F89: MidWest
A90: 2007-04-18 | B90: Joy | C90: Coop | D90: 60 | E90: 48 | F90: West
A91: 2007-01-08 | B91: Tom | C91: Fred Myer | D91: 62 | E91: 47.12 | F91: NorthEast
A92: 2007-12-17 | B92: Chin | C92: Fred Myer | D92: 137 | E92: 100.01 | F92: NorthEast
A93: 2007-03-01 | B93: Sioux | C93: Fred Myer | D93: 84 | E93: 59.64 | F93: MidWest
A94: 2007-08-07 | B94: Tom | C94: Safeway | D94: 55 | E94: 37.4 | F94: NorthEast
A95: 2008-02-26 | B95: Tom | C95: Whole Foods | D95: 237 | E95: 158.79 | F95: MidWest
A96: 2006-02-23 | B96: Tina | C96: Fred Myer | D96: 127 | E96: 85.09 | F96: NorthWest
A97: 2008-04-18 | B97: Tom | C97: Fred Myer | D97: 183 | E97: 78.69 | F97: NorthEast
A98: 2006-05-30 | B98: Sioux | C98: PCC | D98: 124 | E98: 79.36 | F98: NorthEast
A99: 2008-02-12 | B99: Joy | C99: Coop | D99: 1095 | E99: 558.45 | F99: MidWest
A100: 2006-02-23 | B100: Chin | C100: Whole Foods | D100: 160 | E100: 94.4 | F100: NorthWest
A101: 2008-03-20 | B101: Joy | C101: Coop | D101: 870 | E101: 609 | F101: MidWest
A102: 2006-01-07 | B102: Sioux | C102: Coop | D102: 93 | E102: 60.45 | F102: NorthEast
A103: 2008-02-17 | B103: Sioux | C103: Safeway | D103: 193 | E103: 108.08 | F103: East
A104: 2007-03-08 | B104: Tina | C104: PCC | D104: 212 | E104: 125.08 | F104: West
A105: 2007-06-19 | B105: Sioux | C105: Fred Myer | D105: 93 | E105: 68.82 | F105: East
A106: 2006-10-18 | B106: Tom | C106: Coop | D106: 80 | E106: 48.8 | F106: East
A107: 2007-11-22 | B107: Chin | C107: Safeway | D107: 204 | E107: 99.96 | F107: NorthEast
A108: 2007-05-03 | B108: Tina | C108: Fred Myer | D108: 228 | E108: 114 | F108: NorthWest
A109: 2005-11-09 | B109: Chin | C109: Coop | D109: 1399 | E109: 1077.23 | F109: East
A110: 2007-12-07 | B110: Tina | C110: PCC | D110: 187 | E110: 143.99 | F110: East
A111: 2006-10-19 | B111: Tom | C111: Fred Myer | D111: 163 | E111: 122.25 | F111: West
A112: 2008-03-30 | B112: Sioux | C112: PCC | D112: 63 | E112: 30.24 | F112: MidWest
A113: 2005-06-30 | B113: Tina | C113: Coop | D113: 197 | E113: 98.5 | F113: East
A114: 2006-10-11 | B114: Tina | C114: Fred Myer | D114: 237 | E114: 137.46 | F114: MidWest
A115: 2005-08-05 | B115: Sioux | C115: Safeway | D115: 140 | E115: 107.8 | F115: MidWest
A116: 2008-01-12 | B116: Sioux | C116: Coop | D116: 141 | E116: 83.19 | F116: NorthWest
A117: 2007-09-30 | B117: Tina | C117: Coop | D117: 98 | E117: 43.12 | F117: MidWest
A118: 2008-01-23 | B118: Tina | C118: Fred Myer | D118: 510 | E118: 280.5 | F118: MidWest
A119: 2005-10-06 | B119: Tom | C119: Coop | D119: 1010 | E119: 606 | F119: MidWest
A120: 2007-05-01 | B120: Joy | C120: PCC | D120: 114 | E120: 54.72 | F120: East
A121: 2007-06-09 | B121: Sioux | C121: Whole Foods | D121: 220 | E121: 99 | F121: MidWest
A122: 2006-03-28 | B122: Joy | C122: PCC | D122: 92 | E122: 59.8 | F122: NorthWest
A123: 2005-08-08 | B123: Tom | C123: PCC | D123: 180 | E123: 79.2 | F123: NorthEast
A124: 2006-08-17 | B124: Sioux | C124: PCC | D124: 180 | E124: 131.4 | F124: MidWest
A125: 2007-04-30 | B125: Chin | C125: Coop | D125: 81 | E125: 34.02 | F125: NorthEast
A126: 2006-01-24 | B126: Joy | C126: PCC | D126: 178 | E126: 133.5 | F126: NorthWest
A127: 2005-07-16 | B127: Sioux | C127: Safeway | D127: 73 | E127: 32.85 | F127: East
A128: 2008-07-01 | B128: Tina | C128: Whole Foods | D128: 112 | E128: 62.72 | F128: NorthEast
A129: 2007-10-30 | B129: Tom | C129: Safeway | D129: 1607 | E129: 1124.9 | F129: NorthEast
A130: 2006-03-12 | B130: Sioux | C130: PCC | D130: 133 | E130: 54.53 | F130: East
A131: 2005-10-05 | B131: Joy | C131: Whole Foods | D131: 218 | E131: 141.7 | F131: MidWest
A132: 2005-09-04 | B132: Joy | C132: Whole Foods | D132: 190 | E132: 100.7 | F132: East
A133: 2007-03-13 | B133: Chin | C133: Whole Foods | D133: 161 | E133: 78.89 | F133: MidWest
A134: 2007-06-17 | B134: Joy | C134: PCC | D134: 69 | E134: 54.51 | F134: NorthEast
A135: 2007-10-22 | B135: Joy | C135: Safeway | D135: 961 | E135: 643.87 | F135: West
A136: 2007-08-10 | B136: Tom | C136: Safeway | D136: 236 | E136: 167.56 | F136: West
A137: 2006-11-26 | B137: Tina | C137: PCC | D137: 88 | E137: 37.84 | F137: NorthEast
A138: 2006-05-23 | B138: Joy | C138: Safeway | D138: 83 | E138: 57.27 | F138: West
A139: 2006-05-11 | B139: Joy | C139: Fred Myer | D139: 1917 | E139: 996.84 | F139: East
A140: 2007-02-01 | B140: Tom | C140: Safeway | D140: 73 | E140: 48.91 | F140: MidWest
A141: 2007-03-02 | B141: Sioux | C141: Safeway | D141: 216 | E141: 157.68 | F141: East
A142: 2007-07-13 | B142: Tom | C142: Fred Myer | D142: 113 | E142: 76.84 | F142: MidWest
A143: 2006-11-29 | B143: Tom | C143: Whole Foods | D143: 96 | E143: 39.36 | F143: MidWest
A144: 2007-01-19 | B144: Joy | C144: Fred Myer | D144: 171 | E144: 104.31 | F144: West
A145: 2008-05-14 | B145: Chin | C145: Fred Myer | D145: 177 | E145: 79.65 | F145: NorthEast
A146: 2007-07-05 | B146: Tina | C146: Fred Myer | D146: 167 | E146: 93.52 | F146: NorthEast
A147: 2005-10-12 | B147: Tina | C147: Safeway | D147: 73 | E147: 56.21 | F147: NorthWest
A148: 2006-10-28 | B148: Chin | C148: Fred Myer | D148: 152 | E148: 95.76 | F148: East
A149: 2007-12-11 | B149: Tina | C149: Coop | D149: 1658 | E149: 1094.28 | F149: MidWest
A150: 2007-12-20 | B150: Tina | C150: Whole Foods | D150: 195 | E150: 103.35 | F150: West
A151: 2007-08-02 | B151: Chin | C151: Whole Foods | D151: 66 | E151: 50.82 | F151: West
A152: 2005-10-11 | B152: Tom | C152: Whole Foods | D152: 994 | E152: 795.2 | F152: NorthWest
A153: 2006-11-10 | B153: Tina | C153: Whole Foods | D153: 192 | E153: 130.56 | F153: East
A154: 2008-05-12 | B154: Sioux | C154: Safeway | D154: 82 | E154: 59.86 | F154: MidWest
A155: 2005-10-20 | B155: Joy | C155: Fred Myer | D155: 72 | E155: 33.84 | F155: East
A156: 2007-12-25 | B156: Tina | C156: PCC | D156: 131 | E156: 79.91 | F156: MidWest
A157: 2007-07-09 | B157: Chin | C157: Whole Foods | D157: 123 | E157: 63.96 | F157: MidWest
A158: 2008-05-24 | B158: Sioux | C158: PCC | D158: 225 | E158: 105.75 | F158: NorthWest
A159: 2007-12-11 | B159: Sioux | C159: Whole Foods | D159: 1680 | E159: 705.6 | F159: West
A160: 2005-08-31 | B160: Joy | C160: Safeway | D160: 171 | E160: 88.92 | F160: MidWest
A161: 2005-10-20 | B161: Sioux | C161: Fred Myer | D161: 75 | E161: 50.25 | F161: West
A162: 2005-06-19 | B162: Chin | C162: PCC | D162: 186 | E162: 87.42 | F162: NorthEast
A163: 2006-05-18 | B163: Tina | C163: Fred Myer | D163: 54 | E163: 40.5 | F163: East
A164: 2007-05-04 | B164: Sioux | C164: Safeway | D164: 169 | E164: 69.29 | F164: NorthEast
A165: 2005-11-21 | B165: Tom | C165: Whole Foods | D165: 135 | E165: 70.2 | F165: NorthWest
A166: 2006-09-20 | B166: Tom | C166: PCC | D166: 235 | E166: 108.1 | F166: NorthEast
A167: 2006-11-27 | B167: Tom | C167: Whole Foods | D167: 122 | E167: 92.72 | F167: East
A168: 2006-12-29 | B168: Joy | C168: PCC | D168: 220 | E168: 162.8 | F168: MidWest
A169: 2007-06-22 | B169: Chin | C169: Whole Foods | D169: 594 | E169: 338.58 | F169: NorthEast
A170: 2008-01-06 | B170: Tom | C170: Fred Myer | D170: 245 | E170: 120.05 | F170: NorthEast
A171: 2006-07-28 | B171: Chin | C171: Whole Foods | D171: 125 | E171: 98.75 | F171: NorthEast
A172: 2008-02-04 | B172: Joy | C172: Fred Myer | D172: 228 | E172: 180.12 | F172: NorthEast
A173: 2007-01-09 | B173: Joy | C173: Safeway | D173: 76 | E173: 57 | F173: MidWest
A174: 2007-10-23 | B174: Tina | C174: Whole Foods | D174: 166 | E174: 129.48 | F174: MidWest
A175: 2006-05-20 | B175: Sioux | C175: Safeway | D175: 131 | E175: 104.8 | F175: NorthEast
A176: 2005-11-25 | B176: Joy | C176: Fred Myer | D176: 183 | E176: 78.69 | F176: MidWest
A177: 2006-11-06 | B177: Tom | C177: Safeway | D177: 240 | E177: 100.8 | F177: East
A178: 2007-03-18 | B178: Joy | C178: Whole Foods | D178: 109 | E178: 80.66 | F178: NorthWest
A179: 2007-03-19 | B179: Sioux | C179: Safeway | D179: 1907 | E179: 1373.04 | F179: West
A180: 2006-11-19 | B180: Tom | C180: Safeway | D180: 122 | E180: 51.24 | F180: NorthEast
A181: 2006-05-06 | B181: Chin | C181: Fred Myer | D181: 120 | E181: 49.2 | F181: West
A182: 2005-11-01 | B182: Joy | C182: PCC | D182: 145 | E182: 105.85 | F182: West
A183: 2006-07-15 | B183: Sioux | C183: PCC | D183: 148 | E183: 91.76 | F183: East
A184: 2008-04-13 | B184: Joy | C184: Whole Foods | D184: 76 | E184: 32.68 | F184: West
A185: 2007-04-16 | B185: Tom | C185: PCC | D185: 131 | E185: 74.67 | F185: MidWest
A186: 2007-12-07 | B186: Chin | C186: Coop | D186: 763 | E186: 480.69 | F186: East
A187: 2005-11-16 | B187: Sioux | C187: Fred Myer | D187: 209 | E187: 154.66 | F187: NorthWest
A188: 2007-03-09 | B188: Tom | C188: PCC | D188: 61 | E188: 45.14 | F188: NorthEast
A189: 2007-06-27 | B189: Tina | C189: Fred Myer | D189: 1947 | E189: 1343.43 | F189: East
A190: 2006-03-14 | B190: Tom | C190: Fred Myer | D190: 206 | E190: 140.08 | F190: NorthWest
A191: 2005-09-02 | B191: Chin | C191: Coop | D191: 52 | E191: 35.88 | F191: NorthEast
A192: 2007-03-18 | B192: Sioux | C192: PCC | D192: 132 | E192: 76.56 | F192: MidWest
A193: 2007-11-06 | B193: Tom | C193: Fred Myer | D193: 205 | E193: 151.7 | F193: NorthWest
A194: 2007-12-08 | B194: Chin | C194: Fred Myer | D194: 60 | E194: 27.6 | F194: MidWest
A195: 2007-01-08 | B195: Chin | C195: Whole Foods | D195: 137 | E195: 79.46 | F195: NorthEast
A196: 2007-04-18 | B196: Joy | C196: PCC | D196: 191 | E196: 116.51 | F196: East
A197: 2005-09-21 | B197: Tina | C197: Fred Myer | D197: 75 | E197: 37.5 | F197: NorthEast
A198: 2008-05-16 | B198: Tom | C198: Coop | D198: 133 | E198: 94.43 | F198: East
A199: 2006-06-07 | B199: Chin | C199: Coop | D199: 1621 | E199: 1264.38 | F199: NorthWest
A200: 2005-07-28 | B200: Tom | C200: PCC | D200: 76 | E200: 53.2 | F200: MidWest
A201: 2008-01-07 | B201: Sioux | C201: Fred Myer | D201: 96 | E201: 43.2 | F201: West
A202: 2007-09-22 | B202: Tina | C202: Coop | D202: 181 | E202: 139.37 | F202: MidWest
... 399 more rows

Sheet PT(1an)
A3: Sum of Sales | B3: Customer
A4: Sales Rep | B4: Whole Foods | C4: Safeway | D4: PCC | E4: Fred Myer | F4: Coop
A5: Chin | B5: 9614 | C5: 4674 | D5: 9605 | E5: 11715 | F5: 9377
A6: Joy | B6: 3916 | C6: 5230 | D6: 9094 | E6: 9208 | F6: 9931
A7: Sioux | B7: 7782 | C7: 9137 | D7: 7272 | E7: 7399 | F7: 4909
A8: Tina | B8: 4594 | C8: 4174 | D8: 7374 | E8: 6358 | F8: 3957
A9: Tom | B9: 12107 | C9: 4660 | D9: 6182 | E9: 8988 | F9: 8366

Sheet PT(2an)
A3: Customer | B3: Sum of Sales | C3: Average of Sales | D3: StdDevp of Sales
A4: Coop | B4: 36540 | C4: 401.5384615 | D4: 516.2866847
A5: Fred Myer | B5: 43668 | C5: 323.4666667 | D5: 466.0187534
A6: PCC | B6: 39527 | C6: 301.7328244 | D6: 421.1596463
A7: Safeway | B7: 27875 | C7: 253.4090909 | D7: 364.0045778
A8: Whole Foods | B8: 38013 | C8: 309.0487805 | D8: 394.7720316
A9: Grand Total | B9: 185623 | C9: 314.6152542 | D9: 435.092937

Sheet PT(4)
A3: Sum of Sales | B3: Sales Rep
A4: Customer | B4: Chin | C4: Joy | D4: Sioux | E4: Tina | F4: Tom | G4: Grand Total
A5: Coop | B5: 9377 | C5: 9931 | D5: 4909 | E5: 3957 | F5: 8366 | G5: 36540
A6: Fred Myer | B6: 11715 | C6: 9208 | D6: 7399 | E6: 6358 | F6: 8988 | G6: 43668
A7: PCC | B7: 9605 | C7: 9094 | D7: 7272 | E7: 7374 | F7: 6182 | G7: 39527
A8: Safeway | B8: 4674 | C8: 5230 | D8: 9137 | E8: 4174 | F8: 4660 | G8: 27875
A9: Whole Foods | B9: 9614 | C9: 3916 | D9: 7782 | E9: 4594 | F9: 12107 | G9: 38013
A10: Grand Total | B10: 44985 | C10: 37379 | D10: 36499 | E10: 26457 | F10: 40303 | G10: 185623

Sheet Data Analysis(3)
A1: To Count a set of data, drop the field into the Row Labels area and the Value area. | I1: =CHOOSE(RANDBETWEEN(1,10),"iPhone","iPhone","iPhone","Nokia","Motorola","Sony Erickson","Samsung","T-Mobile","Sony Erickson","Samsung") -> T-Mobile
A2: When dropping fields into Value area, the default function for numbers is "Sum", the default function for text is "Count" (**In PivotTables "Count" function counts anything, numbers or text. This is different than the "COUNT" function that we use in a cell. "COUNT" function in cell counts numebrs only. In a PivotTable if you want to count numbers only, use the "Count Number" function.)
A4: Student | B4: Phone Type
A5: Student 01 | B5: iPhone
A6: Student 02 | B6: Nokia
A7: Student 03 | B7: iPhone
A8: Student 04 | B8: iPhone
A9: Student 05 | B9: iPhone
A10: Student 06 | B10: Sony Erickson
A11: Student 07 | B11: Motorola
A12: Student 08 | B12: Sony Erickson
A13: Student 09 | B13: T-Mobile
A14: Student 10 | B14: Samsung
A15: Student 11 | B15: iPhone
A16: Student 12 | B16: iPhone
A17: Student 13 | B17: T-Mobile
A18: Student 14 | B18: iPhone
A19: Student 15 | B19: Samsung
A20: Student 16 | B20: iPhone
A21: Student 17 | B21: Sony Erickson
A22: Student 18 | B22: iPhone
A23: Student 19 | B23: iPhone
A24: Student 20 | B24: iPhone
A25: Student 21 | B25: Nokia
A26: Student 22 | B26: T-Mobile
A27: Student 23 | B27: Motorola
A28: Student 24 | B28: Sony Erickson
A29: Student 25 | B29: Nokia
A30: Student 26 | B30: iPhone
A31: Student 27 | B31: T-Mobile
A32: Student 28 | B32: Sony Erickson
A33: Student 29 | B33: iPhone
A34: Student 30 | B34: Sony Erickson
A35: Student 31 | B35: Sony Erickson
A36: Student 32 | B36: Samsung
A37: Student 33 | B37: iPhone
A38: Student 34 | B38: Nokia
A39: Student 35 | B39: T-Mobile
A40: Student 36 | B40: Samsung
A41: Student 37 | B41: T-Mobile
A42: Student 38 | B42: iPhone
A43: Student 39 | B43: Sony Erickson
A44: Student 40 | B44: iPhone
A45: Student 41 | B45: T-Mobile
A46: Student 42 | B46: Sony Erickson
A47: Student 43 | B47: T-Mobile
A48: Student 44 | B48: Samsung
A49: Student 45 | B49: Motorola
A50: Student 46 | B50: Samsung
A51: Student 47 | B51: Motorola
A52: Student 48 | B52: Sony Erickson
A53: Student 49 | B53: T-Mobile
A54: Student 50 | B54: Nokia
A55: Student 51 | B55: Motorola
A56: Student 52 | B56: Sony Erickson
A57: Student 53 | B57: Nokia
A58: Student 54 | B58: Motorola
A59: Student 55 | B59: Sony Erickson
A60: Student 56 | B60: Nokia
A61: Student 57 | B61: Nokia
A62: Student 58 | B62: T-Mobile
A63: Student 59 | B63: Motorola
A64: Student 60 | B64: Samsung
A65: Student 61 | B65: iPhone
A66: Student 62 | B66: iPhone
A67: Student 63 | B67: T-Mobile
A68: Student 64 | B68: Samsung
A69: Student 65 | B69: iPhone
A70: Student 66 | B70: Samsung
A71: Student 67 | B71: iPhone
A72: Student 68 | B72: T-Mobile
A73: Student 69 | B73: Nokia
A74: Student 70 | B74: Samsung
A75: Student 71 | B75: iPhone
A76: Student 72 | B76: T-Mobile
A77: Student 73 | B77: Samsung
A78: Student 74 | B78: T-Mobile
A79: Student 75 | B79: iPhone
A80: Student 76 | B80: Sony Erickson
A81: Student 77 | B81: Sony Erickson
A82: Student 78 | B82: iPhone
A83: Student 79 | B83: Nokia
A84: Student 80 | B84: Sony Erickson
A85: Student 81 | B85: Sony Erickson
A86: Student 82 | B86: Sony Erickson
A87: Student 83 | B87: iPhone
A88: Student 84 | B88: Nokia
A89: Student 85 | B89: iPhone
A90: Student 86 | B90: Nokia
A91: Student 87 | B91: T-Mobile
A92: Student 88 | B92: iPhone
A93: Student 89 | B93: Sony Erickson
A94: Student 90 | B94: Motorola
A95: Student 91 | B95: Samsung
A96: Student 92 | B96: Sony Erickson
A97: Student 93 | B97: iPhone
A98: Student 94 | B98: iPhone
A99: Student 95 | B99: T-Mobile
A100: Student 96 | B100: Motorola
A101: Student 97 | B101: Samsung
A102: Student 98 | B102: Samsung
A103: Student 99 | B103: Sony Erickson
A104: Student 100 | B104: iPhone
A105: Student 101 | B105: Samsung
A106: Student 102 | B106: Nokia
A107: Student 103 | B107: Sony Erickson
A108: Student 104 | B108: iPhone
A109: Student 105 | B109: iPhone
A110: Student 106 | B110: Nokia
A111: Student 107 | B111: Sony Erickson
A112: Student 108 | B112: Sony Erickson
A113: Student 109 | B113: Samsung
A114: Student 110 | B114: Motorola
A115: Student 111 | B115: Motorola
A116: Student 112 | B116: Samsung
A117: Student 113 | B117: iPhone
A118: Student 114 | B118: Samsung
A119: Student 115 | B119: Sony Erickson
A120: Student 116 | B120: Samsung
A121: Student 117 | B121: Samsung
A122: Student 118 | B122: Sony Erickson
A123: Student 119 | B123: Samsung
A124: Student 120 | B124: iPhone
A125: Student 121 | B125: T-Mobile
A126: Student 122 | B126: Nokia
A127: Student 123 | B127: Samsung
A128: Student 124 | B128: iPhone
A129: Student 125 | B129: Nokia
A130: Student 126 | B130: Sony Erickson
A131: Student 127 | B131: T-Mobile
A132: Student 128 | B132: Samsung
A133: Student 129 | B133: Samsung
A134: Student 130 | B134: Samsung
A135: Student 131 | B135: iPhone
A136: Student 132 | B136: Motorola
A137: Student 133 | B137: Nokia
A138: Student 134 | B138: iPhone
A139: Student 135 | B139: Sony Erickson
A140: Student 136 | B140: T-Mobile
A141: Student 137 | B141: Samsung
A142: Student 138 | B142: Nokia
A143: Student 139 | B143: Nokia
A144: Student 140 | B144: Nokia
A145: Student 141 | B145: T-Mobile
A146: Student 142 | B146: Samsung
A147: Student 143 | B147: Samsung
A148: Student 144 | B148: T-Mobile
A149: Student 145 | B149: Nokia
A150: Student 146 | B150: T-Mobile
A151: Student 147 | B151: T-Mobile
A152: Student 148 | B152: Sony Erickson
A153: Student 149 | B153: iPhone
A154: Student 150 | B154: Samsung
A155: Student 151 | B155: Sony Erickson
A156: Student 152 | B156: Sony Erickson
A157: Student 153 | B157: Samsung
A158: Student 154 | B158: iPhone
A159: Student 155 | B159: Nokia
A160: Student 156 | B160: T-Mobile
A161: Student 157 | B161: T-Mobile
A162: Student 158 | B162: Sony Erickson
A163: Student 159 | B163: iPhone
A164: Student 160 | B164: Sony Erickson
A165: Student 161 | B165: Motorola
A166: Student 162 | B166: iPhone
A167: Student 163 | B167: T-Mobile
A168: Student 164 | B168: Samsung
A169: Student 165 | B169: Sony Erickson
A170: Student 166 | B170: Motorola
A171: Student 167 | B171: T-Mobile
A172: Student 168 | B172: Sony Erickson
A173: Student 169 | B173: Sony Erickson
A174: Student 170 | B174: iPhone
A175: Student 171 | B175: T-Mobile
A176: Student 172 | B176: Samsung
A177: Student 173 | B177: iPhone
A178: Student 174 | B178: iPhone
A179: Student 175 | B179: Motorola
A180: Student 176 | B180: iPhone
A181: Student 177 | B181: Samsung
A182: Student 178 | B182: Samsung
A183: Student 179 | B183: Samsung
A184: Student 180 | B184: Nokia
A185: Student 181 | B185: T-Mobile
A186: Student 182 | B186: iPhone
A187: Student 183 | B187: Motorola
A188: Student 184 | B188: Nokia
A189: Student 185 | B189: Samsung
A190: Student 186 | B190: Sony Erickson
A191: Student 187 | B191: Samsung
A192: Student 188 | B192: T-Mobile
A193: Student 189 | B193: T-Mobile
A194: Student 190 | B194: Nokia
A195: Student 191 | B195: T-Mobile
A196: Student 192 | B196: Sony Erickson
A197: Student 193 | B197: Samsung
A198: Student 194 | B198: iPhone
A199: Student 195 | B199: T-Mobile
A200: Student 196 | B200: Sony Erickson
A201: Student 197 | B201: Motorola
... 188 more rows

Sheet PT(3an)
A3: Phone Type | B3: Count of Phone Type
A4: Motorola | B4: 44
A5: Samsung | B5: 72
A6: Sony Erickson | B6: 75
A7: T-Mobile | B7: 51
A8: Grand Total | B8: 242

Sheet Charts(3)
A1: Charts are on the Insert Menu
A2: Once you select a Chart, three context sensitive menus appear: Design, Layout, Format
A3: Most Chart Elements can be formatted with the Format Chart dialog box by right-clicking the element and pointing to "Format …" or by using the keyboard shortcut Ctrl + 1.
A4: You can link chart titles and labels by: 1) selecting label, 2) clicking in formula bar, 3) typing an equal sign, 4) clicking on cell with label, 5) Enter.
A5: Pie Charts: Compare "parts to the whole", or "individual numbers to the total". Good for percentages, proportions, probabilities.
A6: Column Charts have VERTICAL bars that show changes across categories.
A7: Bar Charts have HORIZONTAL bars that show changes across categories.
A8: Line Charts are for showing changes across a category. The number is plotted on the vertical axis and the category is plotted on the horizontal axis. (Only ONE number is plotted (even if the category is a Year).
A9: X - Y Scatter charts are for showing the relationship between TWO numbers. The independent or X value is plotted on the horizontal axis and the dependent or Y value is plotted on the vertical axis.
A11: WARNING: Book calls column charts "Bar". In Excel and in this class (testing) Column = Vertical and Bar = Horizontal
A13: Pie: Compare Parts To The Whole | D13: Column: Compare numbers across Categories
A14: Qtr | B14: Sales | D14: SalesRep | E14: Sales 2010
A15: Qtr 1 | B15: 391163 | D15: Joe | E15: 391163 | G15: Bar: Compare numbers across Categories. Emphasize Differences.
A16: Qtr 2 | B16: 734599 | D16: Sioux | E16: 734599 | G16: Qtr | H16: Sales
A17: Qtr 3 | B17: 648414 | D17: Chin | E17: 648414 | G17: Joe | H17: 391163
A18: Qtr 4 | B18: 938115 | D18: Shelia | E18: 938115 | G18: Sioux | H18: 734599
G19: Chin | H19: 648414
A20: Two Charts in 1 | G20: Shelia | H20: 938115
A21: Qtr | B21: Revenue | C21: Expenses
A22: Qtr 1 | B22: 591163 | C22: 295581.5
A23: Qtr 2 | B23: 734599 | C23: 337915.54
A24: Qtr 3 | B24: 648414 | C24: 330691.14
A25: Qtr 4 | B25: 638115 | C25: 299914.05

Sheet Charts(3an)
A1: Charts are on the Insert Menu
A2: Once you select a Chart, three context sensitive menus appear: Design, Layout, Format
A3: Most Chart Elements can be formatted with the Format Chart dialog box by right-clicking the element and pointing to "Format …" or by using the keyboard shortcut Ctrl + 1.
A4: You can link chart titles and labels by: 1) selecting label, 2) clicking in formula bar, 3) typing an equal sign, 4) clicking on cell with label, 5) Enter.
A5: Pie Charts: Compare "parts to the whole", or "individual numbers to the total". Good for percentages, proportions, probabilities.
A6: Column Charts have VERTICAL bars that show changes across categories.
A7: Bar Charts have HORIZONTAL bars that show changes across categories.
A8: Line Charts are for showing changes across a category. The number is plotted on the vertical axis and the category is plotted on the horizontal axis. (Only ONE number is plotted (even if the category is a Year).
A9: X - Y Scatter charts are for showing the relationship between TWO numbers. The independent or X value is plotted on the horizontal axis and the dependent or Y value is plotted on the vertical axis.
A11: WARNING: Book calls column charts "Bar". In Excel and in this class (testing) Column = Vertical and Bar = Horizontal
A13: Pie: Compare Parts To The Whole | D13: Column: Compare numbers across Categories
A14: Qtr | B14: Sales | D14: SalesRep | E14: Sales 2010
A15: Qtr 1 | B15: 391163 | D15: Joe | E15: 391163 | G15: Bar: Compare numbers across Categories. Emphasize Differences.
A16: Qtr 2 | B16: 734599 | D16: Sioux | E16: 734599 | G16: Qtr | H16: Sales
A17: Qtr 3 | B17: 648414 | D17: Chin | E17: 648414 | G17: Joe | H17: 391163
A18: Qtr 4 | B18: 938115 | D18: Shelia | E18: 938115 | G18: Sioux | H18: 734599
G19: Chin | H19: 648414
A20: Two Charts in 1 | G20: Shelia | H20: 938115
A21: Qtr | B21: Revenue | C21: Expenses
A22: Qtr 1 | B22: 591163 | C22: 295581.5
A23: Qtr 2 | B23: 734599 | C23: 337915.54
A24: Qtr 3 | B24: 648414 | C24: 330691.14
A25: Qtr 4 | B25: 638115 | C25: 299914.05

Sheet Charts(4)
A1: Line: Compare change across categories or Trend (ONE NUMBER ONLY!!) | G1: X-Y Scatter: Plot Relationship Between Two Numbers (X on Horizontal, Y on Vertical).
A3: Qtr | B3: Sales | D3: Year | E3: Sales | G3: Hour Spent Studying Per Week For One Statistics Class | H3: Test Score | J3: Select Whole Table: Ctrl + *
A4: Qtr 1 | B4: 391163 | D4: 2000 | E4: 91163 | G4: 7 | H4: 83
A5: Qtr 2 | B5: 734599 | D5: 2001 | E5: 134599 | G5: 20 | H5: 100
A6: Qtr 3 | B6: 648414 | D6: 2002 | E6: 148414 | G6: 13 | H6: 92
A7: Qtr 4 | B7: 938115 | D7: 2003 | E7: 138115 | G7: 9 | H7: 90
D8: 2004 | E8: 199845 | G8: 5 | H8: 75
D9: 2005 | E9: 199185 | G9: 15 | H9: 95
D10: 2006 | E10: 122919 | G10: 22 | H10: 105
D11: 2007 | E11: 180820 | G11: 14 | H11: 93
D12: 2008 | E12: 162194 | G12: 25 | H12: 110
D13: 2009 | E13: 249388 | G13: 2 | H13: 51
D14: 2010 | E14: 196892 | G14: 8 | H14: 82
D15: 2011 | E15: 209926 | G15: 6 | H15: 69
D16: 2012 | E16: 355488 | G16: 10 | H16: 81
G17: 16 | H17: 94
G18: 3 | H18: 35
G19: 24 | H19: 103
G20: 8 | H20: 84
G21: 40 | H21: 108
G22: 15 | H22: 89
G23: 25 | H23: 96
G24: 21 | H24: 91
G25: 7 | H25: 80
G26: 9 | H26: 78
G27: 11 | H27: 80
G28: 14 | H28: 91
G29: 4 | H29: 71
G30: 8 | H30: 80

Sheet Charts(4an)
A1: Line: Compare change across categories or Trend (ONE NUMBER ONLY!!) | G1: X-Y Scatter: Plot Relationship Between Two Numbers (X on Horizontal, Y on Vertical).
A3: Qtr | B3: Sales | D3: Year | E3: Sales | G3: Hour Spent Studying Per Week For One Statistics Class | H3: Test Score | J3: Select Whole Table: Ctrl + *
A4: Qtr 1 | B4: 391163 | D4: 2000 | E4: 91163 | G4: 7 | H4: 83
A5: Qtr 2 | B5: 734599 | D5: 2001 | E5: 134599 | G5: 20 | H5: 100
A6: Qtr 3 | B6: 648414 | D6: 2002 | E6: 148414 | G6: 13 | H6: 92
A7: Qtr 4 | B7: 938115 | D7: 2003 | E7: 138115 | G7: 9 | H7: 90
D8: 2004 | E8: 199845 | G8: 5 | H8: 75
D9: 2005 | E9: 199185 | G9: 15 | H9: 95
D10: 2006 | E10: 122919 | G10: 22 | H10: 105
D11: 2007 | E11: 180820 | G11: 14 | H11: 93
D12: 2008 | E12: 162194 | G12: 25 | H12: 110
D13: 2009 | E13: 249388 | G13: 2 | H13: 51
D14: 2010 | E14: 196892 | G14: 8 | H14: 82
D15: 2011 | E15: 209926 | G15: 6 | H15: 69
D16: 2012 | E16: 355488 | G16: 10 | H16: 81
G17: 16 | H17: 94
G18: 3 | H18: 35
G19: 24 | H19: 103
G20: 8 | H20: 84
G21: 40 | H21: 108
G22: 15 | H22: 89
G23: 25 | H23: 96
G24: 21 | H24: 91
G25: 7 | H25: 80
G26: 9 | H26: 78
G27: 11 | H27: 80
G28: 14 | H28: 91
G29: 4 | H29: 71
G30: 8 | H30: 80

Sheet Cell References
E1: Cell References are used in formulas. For Example if you have the formula =A7-$A$11 in cell B7, the formula will always take the value in cell "One to the left" of the cell that the formula sits in and subtract the value in cell A11.
E2: In this class we will only use two of the four types of cell references
E3: Relative Cell Reference means that when you copy the formula, the cell reference moves relatively. For example if the formula is in a cell and the formula is look at a cell reference that is one cell to the left, that cell reference will always look one cell to the left.
E4: Absolute Cell Reference means that when you copy the formula, the cell reference is locked. The cell reference will only point to the original cell. To Apply the $ sign code to the column and row reference, use the keyboard shortcut, F4 (F4 adds the two dollar signs to make the relative cell reference into an absolute cell reference.
A7: ="Ave "&A10 -> Ave Quiz 1 | B7: ="Ave "&B10 -> Ave Quiz 2 | C7: Ave Quiz 3 | E7: Average
E9: X | F9: X - Average
A10: Quiz 1 | B10: Quiz 2 | C10: Quiz 3 | E10: 23
A11: 18 | B11: 15 | C11: 3 | E11: 24
A12: 16 | B12: 18 | C12: 2 | E12: 19
A13: 2 | B13: 4 | C13: 15 | E13: 28
A14: 17 | B14: 16 | C14: 3
A15: 24 | B15: 7 | C15: 9 | E15: CarTypes | G15: CarTypes | H15: Frequency
A16: 16 | B16: 16 | C16: 3 | E16: Honda | G16: Ford
A17: 14 | B17: 5 | C17: 16 | E17: Toyota | G17: Toyota
A18: 20 | B18: 23 | C18: 1 | E18: Honda | G18: Honda
A19: 14 | B19: 7 | C19: 18 | E19: Toyota
A20: 7 | B20: 21 | C20: 6 | E20: Honda
A21: 1 | B21: 5 | C21: 3 | E21: Toyota
A22: 11 | B22: 5 | C22: 19 | E22: Ford
A23: 4 | B23: 19 | C23: 15 | E23: Toyota
A24: 3 | B24: 21 | C24: 4 | E24: Ford
A25: 7 | B25: 17 | C25: 22 | E25: Toyota
A26: 17 | B26: 3 | C26: 22 | E26: Toyota
A27: 14 | B27: 22 | C27: 13 | E27: Ford
A28: 9 | B28: 1 | C28: 13 | E28: Honda
A29: 9 | B29: 16 | C29: 21 | E29: Ford
A30: 5 | B30: 10 | C30: 14 | E30: Ford
A31: 16 | B31: 23 | C31: 19 | E31: Ford
A32: 21 | B32: 12 | C32: 24 | E32: Honda
A33: 21 | B33: 17 | C33: 16 | E33: Ford
E34: Toyota
E35: Ford
E36: Toyota
E37: Honda
E38: Ford
E39: Ford
E40: Toyota
E41: Toyota
E42: Ford
E43: Toyota
E44: Ford
E45: Ford
E46: Toyota
E47: Honda
E48: Ford
E49: Toyota
E50: Toyota
E51: Toyota
E52: Toyota
E53: Toyota
E54: Toyota
E55: Toyota
E56: Toyota
E57: Honda
E58: Toyota
E59: Ford
E60: Ford
E61: Honda
E62: Toyota
E63: Toyota
E64: Toyota
E65: Toyota
E66: Ford
E67: Honda
E68: Honda
E69: Toyota
E70: Toyota
E71: Toyota
E72: Ford
E73: Toyota
E74: Ford

Sheet Cell References (an)
E1: Cell References are used in formulas. For Example if you have the formula =A7-$A$11 in cell B7, the formula will always take the value in cell "One to the left" of the cell that the formula sits in and subtract the value in cell A11.
E2: In this class we will only use two of the four types of cell references
E3: Relative Cell Reference means that when you copy the formula, the cell reference moves relatively. For example if the formula is in a cell and the formula is look at a cell reference that is one cell to the left, that cell reference will always look one cell to the left.
E4: Absolute Cell Reference means that when you copy the formula, the cell reference is locked. The cell reference will only point to the original cell. To Apply the $ sign code to the column and row reference, use the keyboard shortcut, F4 (F4 adds the two dollar signs to make the relative cell reference into an absolute cell reference.
A7: ="Ave "&A10 -> Ave Quiz 1 | B7: ="Ave "&B10 -> Ave Quiz 2 | C7: Ave Quiz 3 | E7: Average | F7: =AVERAGE(E10:E13) -> 23.5
A8: =AVERAGE(A11:A33) -> 12.43478261 | B8: =AVERAGE(B11:B33) -> 13.17391304 | C8: 12.2173913
E9: X | F9: X - Average
A10: Quiz 1 | B10: Quiz 2 | C10: Quiz 3 | E10: 23 | F10: =E10-$F$7 -> -0.5
A11: 18 | B11: 15 | C11: 3 | E11: 24 | F11: =E11-$F$7 -> 0.5
A12: 16 | B12: 18 | C12: 2 | E12: 19 | F12: -4.5
A13: 2 | B13: 4 | C13: 15 | E13: 28 | F13: =E13-$F$7 -> 4.5
A14: 17 | B14: 16 | C14: 3
A15: 24 | B15: 7 | C15: 9 | E15: CarTypes | G15: CarTypes | H15: Frequency
A16: 16 | B16: 16 | C16: 3 | E16: Honda | G16: Ford | H16: =COUNTIF($E$16:$E$74,G16) -> 19
A17: 14 | B17: 5 | C17: 16 | E17: Toyota | G17: Toyota | H17: =COUNTIF($E$16:$E$74,G17) -> 29
A18: 20 | B18: 23 | C18: 1 | E18: Honda | G18: Honda | H18: =COUNTIF($E$16:$E$74,G18) -> 11
A19: 14 | B19: 7 | C19: 18 | E19: Toyota
A20: 7 | B20: 21 | C20: 6 | E20: Honda
A21: 1 | B21: 5 | C21: 3 | E21: Toyota
A22: 11 | B22: 5 | C22: 19 | E22: Ford
A23: 4 | B23: 19 | C23: 15 | E23: Toyota
A24: 3 | B24: 21 | C24: 4 | E24: Ford
A25: 7 | B25: 17 | C25: 22 | E25: Toyota
A26: 17 | B26: 3 | C26: 22 | E26: Toyota
A27: 14 | B27: 22 | C27: 13 | E27: Ford
A28: 9 | B28: 1 | C28: 13 | E28: Honda
A29: 9 | B29: 16 | C29: 21 | E29: Ford
A30: 5 | B30: 10 | C30: 14 | E30: Ford
A31: 16 | B31: 23 | C31: 19 | E31: Ford
A32: 21 | B32: 12 | C32: 24 | E32: Honda
A33: 21 | B33: 17 | C33: 16 | E33: Ford
E34: Toyota
E35: Ford
E36: Toyota
E37: Honda
E38: Ford
E39: Ford
E40: Toyota
E41: Toyota
E42: Ford
E43: Toyota
E44: Ford
E45: Ford
E46: Toyota
E47: Honda
E48: Ford
E49: Toyota
E50: Toyota
E51: Toyota
E52: Toyota
E53: Toyota
E54: Toyota
E55: Toyota
E56: Toyota
E57: Honda
E58: Toyota
E59: Ford
E60: Ford
E61: Honda
E62: Toyota
E63: Toyota
E64: Toyota
E65: Toyota
E66: Ford
E67: Honda
E68: Honda
E69: Toyota
E70: Toyota
E71: Toyota
E72: Ford
E73: Toyota
E74: Ford

Sheet Prop Prob Perc
A1: CarTypes | C1: CarTypes | D1: Frequency | E1: % Frequency | G1: Proportion | H1: Probability | I1: Percentage
A2: Toyota | C2: Ford
A3: Toyota | C3: Toyota
A4: Toyota | C4: Honda
A5: Honda | C5: Total
A6: Honda
A7: Ford | H7: check
A8: Ford | C8: Percent that is Ford OR Toyota = | H8: =(COUNTIF(A2:A60,C2)+COUNTIF(A2:A60,C3))/COUNTA(A2:A60) -> 0.6779661017
A9: Honda | C9: <== | D9: <==
A10: Honda | C10: Because the two categories are mutually exclusive (Each car can only fit in one category), you can just add them.
A11: Toyota
A12: Honda
A13: Toyota
A14: Toyota
A15: Toyota
A16: Toyota
A17: Honda
A18: Toyota
A19: Honda
A20: Toyota
A21: Toyota
A22: Toyota
A23: Toyota
A24: Ford
A25: Ford
A26: Ford
A27: Honda
A28: Toyota
A29: Toyota
A30: Honda
A31: Ford
A32: Toyota
A33: Toyota
A34: Honda
A35: Honda
A36: Ford
A37: Honda
A38: Ford
A39: Toyota
A40: Honda
A41: Ford
A42: Honda
A43: Honda
A44: Ford
A45: Toyota
A46: Honda
A47: Ford
A48: Honda
A49: Ford
A50: Honda
A51: Toyota
A52: Ford
A53: Toyota
A54: Honda
A55: Toyota
A56: Ford
A57: Toyota
A58: Ford
A59: Ford
A60: Ford

Sheet Prop Prob Perc (an)
A1: CarTypes | C1: CarTypes | D1: Frequency | E1: % Frequency | G1: Proportion | H1: Probability | I1: Percentage
A2: Toyota | C2: Ford | D2: =COUNTIF($A$2:$A$60,C2) -> 17 | E2: =D2/$D$5 -> 0.2881355932 | G2: =D2/$D$5 -> 0.2881355932 | H2: =D2/$D$5 -> 0.2881355932 | I2: =D2/$D$5 -> 0.2881355932
A3: Toyota | C3: Toyota | D3: =COUNTIF($A$2:$A$60,C3) -> 23 | E3: =D3/$D$5 -> 0.3898305085 | G3: =D3/$D$5 -> 0.3898305085 | H3: =D3/$D$5 -> 0.3898305085 | I3: =D3/$D$5 -> 0.3898305085
A4: Toyota | C4: Honda | D4: 19 | E4: 0.3220338983 | G4: 0.3220338983 | H4: 0.3220338983 | I4: 0.3220338983
A5: Honda | C5: Total | D5: =SUM(D2:D4) -> 59 | E5: 1 | G5: 1 | H5: 1 | I5: 1
A6: Honda
A7: Ford | H7: check
A8: Ford | C8: Percent that is Ford OR Toyota = | E8: =SUM(E2:E3) -> 0.6779661017 | H8: =(COUNTIF(A2:A60,C2)+COUNTIF(A2:A60,C3))/COUNTA(A2:A60) -> 0.6779661017
A9: Honda | C9: <== | D9: <== | E9: =SUM(D2:D3)/D5 -> 0.6779661017
A10: Honda | C10: Because the two categories are mutually exclusive (Each car can only fit in one category), you can just add them.
A11: Toyota
A12: Honda
A13: Toyota
A14: Toyota
A15: Toyota
A16: Toyota
A17: Honda
A18: Toyota
A19: Honda
A20: Toyota
A21: Toyota
A22: Toyota
A23: Toyota
A24: Ford
A25: Ford
A26: Ford
A27: Honda
A28: Toyota
A29: Toyota
A30: Honda
A31: Ford
A32: Toyota
A33: Toyota
A34: Honda
A35: Honda
A36: Ford
A37: Honda
A38: Ford
A39: Toyota
A40: Honda
A41: Ford
A42: Honda
A43: Honda
A44: Ford
A45: Toyota
A46: Honda
A47: Ford
A48: Honda
A49: Ford
A50: Honda
A51: Toyota
A52: Ford
A53: Toyota
A54: Honda
A55: Toyota
A56: Ford
A57: Toyota
A58: Ford
A59: Ford
A60: Ford
